{"text_format":"1","workbook":"xlsx","n_sheets":7,"sheets":["GetStats","Instructions","xlGoals","xlPenalties","xlGoalies","xlShootout","Schedule"],"not_rendered":{"charts":0,"images":16,"macros":1,"external_links":0,"defined_names":12,"comments":0,"pivot_tables":0},"unopened":[],"bounds":{"document_bytes":16777216,"sheet_cells":100000,"rows_first":2000,"rows_last":500,"rows_between":2000,"halvings":0,"cell_chars":16384,"cell_head_chars":4096},"cells_cut":0,"cells_raw":0,"read":"whole","date_system":"1900"}

{"sheet":"GetStats","index":0,"n_rows":4,"n_cols":1,"rows_kept":4,"cut":false,"hidden":false,"merged":[[3,0,3,20]]}
[]
[]
[]
["Extract Game Statistics from Hockey-Reference.com"]

{"sheet":"Instructions","index":1,"n_rows":1,"n_cols":1,"rows_kept":1,"cut":false,"hidden":false,"merged":[[0,0,0,19],[2,0,2,19]]}
["xlHockeyRef_Query:  Using \"Get Game Stats\" for Extracting  Stats Tables for Access Import"]

{"sheet":"xlGoals","index":2,"n_rows":5,"n_cols":10,"rows_kept":5,"cut":false,"hidden":false,"merged":[]}
["GameNum","CalDate","GoalNum","Per","PerTime","TeamAbr","SpecG","Scorer","PriAsst","SecAsst"]
[79,"2019-03-31",null,1,"10:45:00","PIT","","Garrett Wilson","Matt Cullen","Adam Johnson"]
[79,"2019-03-31",null,1,"18:45:00","PIT","","Matt Cullen","Adam Johnson","Brian Dumoulin"]
[79,"2019-03-31",null,3,"00:46:00","PIT","","Patric Hornqvist","Dominik Simon","Nick Bjugstad"]
[79,"2019-03-31",null,3,"12:12:00","CAR","PP","Jaccob Slavin","Andrei Svechnikov","Micheal Ferland"]

{"sheet":"xlPenalties","index":3,"n_rows":8,"n_cols":9,"rows_kept":8,"cut":false,"hidden":false,"merged":[]}
["GameNum","CalDate","PenNum","Per","PerTime","TeamAbr","Player","Penalty","Min"]
[79,"2019-03-31",null,1,"19:25:00","PIT","Patric Hornqvist","Roughing",2]
[79,"2019-03-31",null,1,"19:25:00","CAR","Justin Williams","Roughing",2]
[79,"2019-03-31",null,1,"19:33:00","CAR","Justin Faulk","Tripping",2]
[79,"2019-03-31",null,2,"05:33:00","PIT","Olli Maatta","Boarding",2]
[79,"2019-03-31",null,3,"10:49:00","PIT","Jack Johnson","Cross checking",2]
[79,"2019-03-31",null,3,"19:27:00","PIT","Brian Dumoulin","Delay of game",2]
[79,"2019-03-31",null,3,"19:27:00","CAR","Dougie Hamilton","Slashing",2]

{"sheet":"xlGoalies","index":4,"n_rows":3,"n_cols":10,"rows_kept":3,"cut":false,"hidden":false,"merged":[]}
["Rank","CalDate","TeamAbr","Goalie","DEC","GA","SOG","SV","SO","TOI"]
[1,"2019-03-31","CAR","Curtis McElhinney","L",3,28,25,0,"57:07"]
[1,"2019-03-31","PIT","Matt Murray","W",1,38,37,0,"60:00"]

{"sheet":"xlShootout","index":5,"n_rows":1,"n_cols":8,"rows_kept":1,"cut":false,"hidden":false,"merged":[]}
["GameNum","CalDate","TotAtts","AttNum","TeamAbr","Shooter","Goalie","GorS"]

{"sheet":"Schedule","index":6,"n_rows":783,"n_cols":25,"rows_kept":783,"cut":false,"hidden":true,"merged":[[0,1,0,5],[0,16,0,18],[0,20,0,22]]}
[null,"2017-18 Season Schedule",null,null,null,null,null,null,null,null,null,null,null,null,null,null,"Pens League Game Dates ",null,null,null,"Web Query Variables for Game Dates "]
["GP","Date","Time (EST)","Home/Away","H/ASymbol","Opponent",null,"GameDates",null,null,null,"GDNoDate",null,null,"TeamAbr",null,"Date","Visitor","Home",null,"Game_Date","Num_Games","HTML_Input","GameNum","HRLink"]
[1,"2018-10-04","19:00:00","Home",null,"Washington Capitals",null,{"$f":"TEXT(B3,\"mm/dd/yyyy\")&\" \"&E3&F3&\" (\"&O3&\")\"","v":"10/04/2018 Washington Capitals (WSH)"},null,null,null,{"$f":"TRIM(RIGHT(H3,LEN(H3)-11))","v":"Washington Capitals (WSH)"},null,null,"WSH",null,"2018-10-04","Boston Bruins","Buffalo Sabres",null,"2018-10-04",{"$f":"COUNTIF(PensGameDates4[Date],U3)+1","v":11},"201810040PIT.html",1,{"$f":"\"https://www.hockey-reference.com/boxscores/\"&W3","v":"https://www.hockey-reference.com/boxscores/201810040PIT.html"}]
[2,"2018-10-06","19:00:00","Home",null,"Montreal Canadiens",null,"10/06/2018 Montreal Canadiens (MTL)",null,null,null,{"$f":"TRIM(RIGHT(H4,LEN(H4)-11))","v":"Montreal Canadiens (MTL)"},null,null,"MTL",null,"2018-10-04","New York Islanders","Carolina Hurricanes",null,"2018-10-06",{"$f":"COUNTIF(PensGameDates4[Date],U4)+1","v":13},"201810060PIT.html",{"$f":"A3+1","v":2},{"$f":"\"https://www.hockey-reference.com/boxscores/\"&W4","v":"https://www.hockey-reference.com/boxscores/201810060PIT.html"}]
[3,"2018-10-11","19:00:00","Home",null,"Vegas Golden Knights",null,"10/11/2018 Vegas Golden Knights (VEG)",null,null,null,{"$f":"TRIM(RIGHT(H5,LEN(H5)-10))","v":"Vegas Golden Knights (VEG)"},null,null,"VEG",null,"2018-10-04","Minnesota Wild","Colorado Avalanche",null,"2018-10-11",{"$f":"COUNTIF(PensGameDates4[Date],U5)+1","v":13},"201810110PIT.html",{"$f":"A4+1","v":3},"https://www.hockey-reference.com/boxscores/201810110PIT.html"]
[4,"2018-10-13","19:00:00","Away","@","Montreal Canadiens",null,"10/13/2018 @Montreal Canadiens (MTL)",null,null,null,"@Montreal Canadiens (MTL)",null,null,"MTL",null,"2018-10-04","Arizona Coyotes","Dallas Stars",null,"2018-10-13",{"$f":"COUNTIF(PensGameDates4[Date],U6)+1","v":15},"201810130MTL.html",4,"https://www.hockey-reference.com/boxscores/201810130MTL.html"]
[5,"2018-10-16","19:00:00","Home",null,"Vancouver Canucks",null,"10/16/2018 Vancouver Canucks (VAN)",null,null,null,"Vancouver Canucks (VAN)",null,null,"VAN",null,"2018-10-04","Columbus Blue Jackets","Detroit Red Wings",null,"2018-10-16",{"$f":"COUNTIF(PensGameDates4[Date],U7)+1","v":9},"201810160PIT.html",5,"https://www.hockey-reference.com/boxscores/201810160PIT.html"]
[6,"2018-10-18","19:00:00","Away","@","Toronto Maple Leafs",null,"10/18/2018 @Toronto Maple Leafs (TOR)",null,null,null,"@Toronto Maple Leafs (TOR)",null,null,"TOR",null,"2018-10-04","Nashville Predators","New York Rangers",null,"2018-10-18",{"$f":"COUNTIF(PensGameDates4[Date],U8)+1","v":10},"201810180TOR.html",6,"https://www.hockey-reference.com/boxscores/201810180TOR.html"]
[7,"2018-10-23","21:00:00","Away","@","Edmonton Oilers",null,"10/23/2018 @Edmonton Oilers (EDM)",null,null,null,"@Edmonton Oilers (EDM)",null,null,"EDM",null,"2018-10-04","Chicago Blackhawks","Ottawa Senators",null,"2018-10-23",{"$f":"COUNTIF(PensGameDates4[Date],U9)+1","v":9},"201810230EDM.html",7,"https://www.hockey-reference.com/boxscores/201810230EDM.html"]
[8,"2018-10-25","21:00:00","Away","@","Calgary Flames",null,"10/25/2018 @Calgary Flames (CGY)",null,null,null,"@Calgary Flames (CGY)",null,null,"CGY",null,"2018-10-04","Washington Capitals","Pittsburgh Penguins",null,"2018-10-25",{"$f":"COUNTIF(PensGameDates4[Date],U10)+1","v":11},"201810250CGY.html",8,"https://www.hockey-reference.com/boxscores/201810250CGY.html"]
[9,"2018-10-27","22:00:00","Away","@","Vancouver Canucks",null,"10/27/2018 @Vancouver Canucks (VAN)",null,null,null,"@Vancouver Canucks (VAN)",null,null,"VAN",null,"2018-10-04","Winnipeg Jets","St. Louis Blues",null,"2018-10-27",{"$f":"COUNTIF(PensGameDates4[Date],U11)+1","v":12},"201810270VAN.html",9,"https://www.hockey-reference.com/boxscores/201810270VAN.html"]
[10,"2018-10-30","19:00:00","Home",null,"New York Islanders",null,"10/30/2018 New York Islanders (NYI)",null,null,null,"New York Islanders (NYI)",null,null,"NYI",null,"2018-10-04","Philadelphia Flyers","Vegas Golden Knights",null,"2018-10-30",{"$f":"COUNTIF(PensGameDates4[Date],U12)+1","v":12},"201810300PIT.html",10,"https://www.hockey-reference.com/boxscores/201810300PIT.html"]
[11,"2018-11-01","19:00:00","Home","@","New York Islanders",null,"11/01/2018 @New York Islanders (NYI)",null,null,null,"@New York Islanders (NYI)",null,null,"NYI",null,"2018-10-06","Anaheim Ducks","Arizona Coyotes",null,"2018-11-01",{"$f":"COUNTIF(PensGameDates4[Date],U13)+1","v":14},"201811010NYI.html",11,"https://www.hockey-reference.com/boxscores/201811010NYI.html"]
[12,"2018-11-03","19:00:00","Home",null,"Toronto Maple Leafs",null,"11/03/2018 Toronto Maple Leafs (TOR)",null,null,null,"Toronto Maple Leafs (TOR)",null,null,"TOR",null,"2018-10-06","New York Rangers","Buffalo Sabres",null,"2018-11-03",{"$f":"COUNTIF(PensGameDates4[Date],U14)+1","v":13},"201811030PIT.html",12,"https://www.hockey-reference.com/boxscores/201811030PIT.html"]
[13,"2018-11-05","19:00:00","Home",null,"New Jersey Devils",null,"11/05/2018 New Jersey Devils (NJD)",null,null,null,"New Jersey Devils (NJD)",null,null,"NJD",null,"2018-10-06","Vancouver Canucks","Calgary Flames",null,"2018-11-05",{"$f":"COUNTIF(PensGameDates4[Date],U15)+1","v":6},"201811050PIT.html",13,"https://www.hockey-reference.com/boxscores/201811050PIT.html"]
[14,"2018-11-07","19:30:00","Away","@","Washington Capitals",null,"11/07/2018 @Washington Capitals (WSH)",null,null,null,"@Washington Capitals (WSH)",null,null,"WSH",null,"2018-10-06","Philadelphia Flyers","Colorado Avalanche",null,"2018-11-07",{"$f":"COUNTIF(PensGameDates4[Date],U16)+1","v":4},"201811070WSH.html",14,"https://www.hockey-reference.com/boxscores/201811070WSH.html"]
[15,"2018-11-10","19:00:00","Home",null,"Arizona Coyotes",null,"11/10/2018 Arizona Coyotes (ARI)",null,null,null,"Arizona Coyotes (ARI)",null,null,"ARI",null,"2018-10-06","Winnipeg Jets","Dallas Stars",null,"2018-11-10",{"$f":"COUNTIF(PensGameDates4[Date],U17)+1","v":12},"2018111050PIT.html",15,"https://www.hockey-reference.com/boxscores/2018111050PIT.html"]
[16,"2018-11-13","19:00:00","Away","@","New Jersey Devils",null,"11/13/2018 @New Jersey Devils (NJD)",null,null,null,"@New Jersey Devils (NJD)",null,null,"NJD",null,"2018-10-06","Vegas Golden Knights","Minnesota Wild",null,"2018-11-13",{"$f":"COUNTIF(PensGameDates4[Date],U18)+1","v":10},"201811130NJD.html",16,"https://www.hockey-reference.com/boxscores/201811130NJD.html"]
[17,"2018-11-15","19:00:00","Home",null,"Tampa Bay Lightning",null,"11/15/2018 Tampa Bay Lightning (TBL)",null,null,null,"Tampa Bay Lightning (TBL)",null,null,"TBL",null,"2018-10-06","Edmonton Oilers","New Jersey Devils",null,"2018-11-15",{"$f":"COUNTIF(PensGameDates4[Date],U19)+1","v":10},"201811150PIT.html",17,"https://www.hockey-reference.com/boxscores/201811150PIT.html"]
[18,"2018-11-17","19:00:00","Away","@","Ottawa Senators",null,"11/17/2018 @Ottawa Senators (OTT)",null,null,null,"@Ottawa Senators (OTT)",null,null,"OTT",null,"2018-10-06","Nashville Predators","New York Islanders",null,"2018-11-17",{"$f":"COUNTIF(PensGameDates4[Date],U20)+1","v":12},"201811170OTT.html",18,"https://www.hockey-reference.com/boxscores/201811170OTT.html"]
[19,"2018-11-19","19:00:00","Home",null,"Buffalo Sabres",null,"11/19/2018 Buffalo Sabres (BUF)",null,null,null,"Buffalo Sabres (BUF)",null,null,"BUF",null,"2018-10-06","Montreal Canadiens","Pittsburgh Penguins",null,"2018-11-19",{"$f":"COUNTIF(PensGameDates4[Date],U21)+1","v":10},"201811190PIT.html",19,"https://www.hockey-reference.com/boxscores/201811190PIT.html"]
[20,"2018-11-21","19:00:00","Home",null,"Dallas Stars",null,"11/21/2018 Dallas Stars (DAL)",null,null,null,"Dallas Stars (DAL)",null,null,"DAL",null,"2018-10-06","Chicago Blackhawks","St. Louis Blues",null,"2018-11-21",{"$f":"COUNTIF(PensGameDates4[Date],U22)+1","v":15},"201811210PIT.html",20,"https://www.hockey-reference.com/boxscores/201811210PIT.html"]
[21,"2018-11-23","19:30:00","Away","@","Boston Bruins",null,"11/23/2018 @Boston Bruins (BOS)",null,null,null,"@Boston Bruins (BOS)",null,null,"BOS",null,"2018-10-06","Florida Panthers","Tampa Bay Lightning",null,"2018-11-23",{"$f":"COUNTIF(PensGameDates4[Date],U23)+1","v":16},"201811230BOS.html",21,"https://www.hockey-reference.com/boxscores/201811230BOS.html"]
[22,"2018-11-24","19:00:00","Home",null,"Columbus Blue Jackets",null,"11/24/2018 Columbus Blue Jackets (CBJ)",null,null,null,"Columbus Blue Jackets (CBJ)",null,null,"CBJ",null,"2018-10-06","Ottawa Senators","Toronto Maple Leafs",null,"2018-11-24",{"$f":"COUNTIF(PensGameDates4[Date],U24)+1","v":12},"201811240PIT.html",22,"https://www.hockey-reference.com/boxscores/201811240PIT.html"]
[23,"2018-11-27","20:00:00","Away","@","Winnipeg Jets",null,"11/27/2018 @Winnipeg Jets (WPG)",null,null,null,"@Winnipeg Jets (WPG)",null,null,"WPG",null,"2018-10-11","Edmonton Oilers","Boston Bruins",null,"2018-11-27",{"$f":"COUNTIF(PensGameDates4[Date],U25)+1","v":11},"201811270WPG.html",23,"https://www.hockey-reference.com/boxscores/201811270WPG.html"]
[24,"2018-11-28","21:30:00","Away","@","Colorado Avalanche",null,"11/28/2018 @Colorado Avalanche (COL)",null,null,null,"@Colorado Avalanche (COL)",null,null,"COL",null,"2018-10-11","Colorado Avalanche","Buffalo Sabres",null,"2018-11-28",{"$f":"COUNTIF(PensGameDates4[Date],U26)+1","v":6},"201811280COL.html",24,"https://www.hockey-reference.com/boxscores/201811280COL.html"]
[25,"2018-12-01","19:00:00","Home",null,"Philadelphia Flyers",null,"12/01/2018 Philadelphia Flyers (PHI)",null,null,null,"Philadelphia Flyers (PHI)",null,null,"PHI",null,"2018-10-11","Toronto Maple Leafs","Detroit Red Wings",null,"2018-12-01",{"$f":"COUNTIF(PensGameDates4[Date],U27)+1","v":13},"201812010PIT.html",25,"https://www.hockey-reference.com/boxscores/201812010PIT.html"]
[26,"2018-12-04","19:00:00","Home",null,"Colorado Avalanche",null,"12/04/2018 Colorado Avalanche (COL)",null,null,null,"Colorado Avalanche (COL)",null,null,"COL",null,"2018-10-11","Columbus Blue Jackets","Florida Panthers",null,"2018-12-04",{"$f":"COUNTIF(PensGameDates4[Date],U28)+1","v":11},"201812040PIT.html",26,"https://www.hockey-reference.com/boxscores/201812040PIT.html"]
[27,"2018-12-06","19:00:00","Home",null,"New York Islanders",null,"12/06/2018 New York Islanders (NYI)",null,null,null,"New York Islanders (NYI)",null,null,"NYI",null,"2018-10-11","Chicago Blackhawks","Minnesota Wild",null,"2018-12-06",{"$f":"COUNTIF(PensGameDates4[Date],U29)+1","v":12},"201812060PIT.html",27,"https://www.hockey-reference.com/boxscores/201812060PIT.html"]
[28,"2018-12-08","19:00:00","Away","@","Ottawa Senators",null,"12/08/2018 @Ottawa Senators (OTT)",null,null,null,"@Ottawa Senators (OTT)",null,null,"OTT",null,"2018-10-11","Los Angeles Kings","Montreal Canadiens",null,"2018-12-08",{"$f":"COUNTIF(PensGameDates4[Date],U30)+1","v":11},"201812080OTT.html",28,"https://www.hockey-reference.com/boxscores/201812080OTT.html"]
[29,"2018-12-10","19:00:00","Away","@","New York Islanders",null,"12/10/2018 @New York Islanders (NYI)",null,null,null,"@New York Islanders (NYI)",null,null,"NYI",null,"2018-10-11","Washington Capitals","New Jersey Devils",null,"2018-12-10",{"$f":"COUNTIF(PensGameDates4[Date],U31)+1","v":5},"201812100NYI.html",29,"https://www.hockey-reference.com/boxscores/201812100NYI.html"]
[30,"2018-12-12","20:00:00","Away","@","Chicago Blackhawks",null,"12/12/2018 @Chicago Blackhawks (CHI)",null,null,null,"@Chicago Blackhawks (CHI)",null,null,"CHI",null,"2018-10-11","Winnipeg Jets","Nashville Predators",null,"2018-12-12",{"$f":"COUNTIF(PensGameDates4[Date],U32)+1","v":5},"201812120CHI.html",30,"https://www.hockey-reference.com/boxscores/201812120CHI.html"]
[31,"2018-12-14","19:00:00","Home",null,"Boston Bruins",null,"12/14/2018 Boston Bruins (BOS)",null,null,null,"Boston Bruins (BOS)",null,null,"BOS",null,"2018-10-11","San Jose Sharks","New York Rangers",null,"2018-12-14",{"$f":"COUNTIF(PensGameDates4[Date],U33)+1","v":9},"201812140PIT.html",31,"https://www.hockey-reference.com/boxscores/201812140PIT.html"]
[32,"2018-12-15","19:00:00","Home",null,"Los Angeles Kings",null,"12/15/2018 Los Angeles Kings (LAK)",null,null,null,"Los Angeles Kings (LAK)",null,null,"LAK",null,"2018-10-11","Vegas Golden Knights","Pittsburgh Penguins",null,"2018-12-15",{"$f":"COUNTIF(PensGameDates4[Date],U34)+1","v":11},"201812150PIT.html",32,"https://www.hockey-reference.com/boxscores/201812150PIT.html"]
[33,"2018-12-17","19:00:00","Home",null,"Anaheim Ducks",null,"12/17/2018 Anaheim Ducks (ANA)",null,null,null,"Anaheim Ducks (ANA)",null,null,"ANA",null,"2018-10-11","Calgary Flames","St. Louis Blues",null,"2018-12-17",{"$f":"COUNTIF(PensGameDates4[Date],U35)+1","v":6},"201812170PIT.html",33,{"$f":"\"https://www.hockey-reference.com/boxscores/\"&W35","v":"https://www.hockey-reference.com/boxscores/201812170PIT.html"}]
[34,"2018-12-19","20:00:00","Away","@","Washington Capitals",null,"12/19/2018 @Washington Capitals (WSH)",null,null,null,"@Washington Capitals (WSH)",null,null,"WSH",null,"2018-10-11","Vancouver Canucks","Tampa Bay Lightning",null,"2018-12-19",{"$f":"COUNTIF(PensGameDates4[Date],U36)+1","v":3},"201812190WSH.html",34,"https://www.hockey-reference.com/boxscores/201812190WSH.html"]
[35,"2018-12-20","19:00:00","Home",null,"Minnesota Wild",null,"12/20/2018 Minnesota Wild (MIN)",null,null,null,"Minnesota Wild (MIN)",null,null,"MIN",null,"2018-10-13","Buffalo Sabres","Arizona Coyotes",null,"2018-12-20",{"$f":"COUNTIF(PensGameDates4[Date],U37)+1","v":13},"201812200PIT.html",35,"https://www.hockey-reference.com/boxscores/201812200PIT.html"]
[36,"2018-12-22","19:00:00","Away","@","Carolina Hurricanes",null,"12/22/2018 @Carolina Hurricanes (CAR)",null,null,null,"@Carolina Hurricanes (CAR)",null,null,"CAR",null,"2018-10-13","Detroit Red Wings","Boston Bruins",null,"2018-12-22",{"$f":"COUNTIF(PensGameDates4[Date],U38)+1","v":15},"201812220CAR.html",36,"https://www.hockey-reference.com/boxscores/201812220CAR.html"]
[37,"2018-12-27","19:00:00","Home",null,"Detroit Red Wings",null,"12/27/2018 Detroit Red Wings (DET)",null,null,null,"Detroit Red Wings (DET)",null,null,"DET",null,"2018-10-13","St. Louis Blues","Chicago Blackhawks",null,"2018-12-27",{"$f":"COUNTIF(PensGameDates4[Date],U39)+1","v":14},"201812270PIT.html",37,{"$f":"\"https://www.hockey-reference.com/boxscores/\"&W39","v":"https://www.hockey-reference.com/boxscores/201812270PIT.html"}]
[38,"2018-12-29","20:00:00","Away","@","St. Louis Blues",null,"12/29/2018 @St. Louis Blues (STL)",null,null,null,"@St. Louis Blues (STL)",null,null,"STL",null,"2018-10-13","Calgary Flames","Colorado Avalanche",null,"2018-12-29",{"$f":"COUNTIF(PensGameDates4[Date],U40)+1","v":16},"201812290STL.html",38,"https://www.hockey-reference.com/boxscores/201812290STL.html"]
[39,"2018-12-31","18:00:00","Away","@","Minnesota Wild",null,"12/31/2018 @Minnesota Wild (MIN)",null,null,null,"@Minnesota Wild (MIN)",null,null,"MIN",null,"2018-10-13","Anaheim Ducks","Dallas Stars",null,"2018-12-31",{"$f":"COUNTIF(PensGameDates4[Date],U41)+1","v":14},"201812310MIN.html",39,"https://www.hockey-reference.com/boxscores/201812310MIN.html"]
[40,"2019-01-02","19:00:00","Away","@","New York Rangers",null,"01/02/2019 @New York Rangers (NYR)",null,null,null,"@New York Rangers (NYR)",null,null,"NYR",null,"2018-10-13","Vancouver Canucks","Florida Panthers",null,"2019-01-02",{"$f":"COUNTIF(PensGameDates4[Date],U42)+1","v":7},"201901020NYR.html",40,"https://www.hockey-reference.com/boxscores/201901020NYR.html"]
[41,"2019-01-04","19:00:00","Home",null,"Winnipeg Jets",null,"01/04/2019 Winnipeg Jets (WPG)",null,null,null,"Winnipeg Jets (WPG)",null,null,"WPG",null,"2018-10-13","Carolina Hurricanes","Minnesota Wild",null,"2019-01-04",{"$f":"COUNTIF(PensGameDates4[Date],U43)+1","v":8},"201901040PIT.html",41,"https://www.hockey-reference.com/boxscores/201901040PIT.html"]
[42,"2019-01-06","20:00:00","Home",null,"Chicago Blackhawks",null,"01/06/2019 Chicago Blackhawks (CHI)",null,null,null,"Chicago Blackhawks (CHI)",null,null,"CHI",null,"2018-10-13","Pittsburgh Penguins","Montreal Canadiens",null,"2019-01-06",{"$f":"COUNTIF(PensGameDates4[Date],U44)+1","v":8},"201901060PIT.html",42,"https://www.hockey-reference.com/boxscores/201901060PIT.html"]
[43,"2019-01-08","19:00:00","Home",null,"Florida Panthers",null,"01/08/2019 Florida Panthers (FLA)",null,null,null,"Florida Panthers (FLA)",null,null,"FLA",null,"2018-10-13","New York Islanders","Nashville Predators",null,"2019-01-08",{"$f":"COUNTIF(PensGameDates4[Date],U45)+1","v":12},"201901080PIT.html",43,"https://www.hockey-reference.com/boxscores/201901080PIT.html"]
[44,"2019-01-11","22:00:00","Away","@","Anaheim Ducks",null,"01/11/2019 @Anaheim Ducks (ANA)",null,null,null,"@Anaheim Ducks (ANA)",null,null,"ANA",null,"2018-10-13","Edmonton Oilers","New York Rangers",null,"2019-01-11",{"$f":"COUNTIF(PensGameDates4[Date],U46)+1","v":5},"201901110ANA.html",44,"https://www.hockey-reference.com/boxscores/201901110ANA.html"]
[45,"2019-01-12","22:30:00","Away","@","Los Angeles Kings",null,"01/12/2019 @Los Angeles Kings (LAK)",null,null,null,"@Los Angeles Kings (LAK)",null,null,"LAK",null,"2018-10-13","Los Angeles Kings","Ottawa Senators",null,"2019-01-12",{"$f":"COUNTIF(PensGameDates4[Date],U47)+1","v":13},"201901120LAK.html",45,"https://www.hockey-reference.com/boxscores/201901120LAK.html"]
[46,"2019-01-15","22:00:00","Away","@","San Jose Sharks",null,"01/15/2019 @San Jose Sharks (SJS)",null,null,null,"@San Jose Sharks (SJS)",null,null,"SJS",null,"2018-10-13","Vegas Golden Knights","Philadelphia Flyers",null,"2019-01-15",{"$f":"COUNTIF(PensGameDates4[Date],U48)+1","v":11},"201901150SJS.html",46,"https://www.hockey-reference.com/boxscores/201901150SJS.html"]
[47,"2019-01-18","21:00:00","Away","@","Arizona Coyotes",null,"01/18/2019 @Arizona Coyotes (ARI)",null,null,null,"@Arizona Coyotes (ARI)",null,null,"ARI",null,"2018-10-13","Columbus Blue Jackets","Tampa Bay Lightning",null,"2019-01-18",{"$f":"COUNTIF(PensGameDates4[Date],U49)+1","v":8},"201901180ARI.html",47,"https://www.hockey-reference.com/boxscores/201901180ARI.html"]
[48,"2019-01-19","22:00:00","Away","@","Vegas Golden Knights",null,"01/19/2019 @Vegas Golden Knights (VEG)",null,null,null,"@Vegas Golden Knights (VEG)",null,null,"VEG",null,"2018-10-13","Toronto Maple Leafs","Washington Capitals",null,"2019-01-19",{"$f":"COUNTIF(PensGameDates4[Date],U50)+1","v":12},"201901190VEG.html",48,"https://www.hockey-reference.com/boxscores/201901190VEG.html"]
[49,"2019-01-28","19:00:00","Home",null,"New Jersey Devils",null,"01/28/2019 New Jersey Devils (NJD)",null,null,null,"New Jersey Devils (NJD)",null,null,"NJD",null,"2018-10-16","Arizona Coyotes","Minnesota Wild",null,"2019-01-28",{"$f":"COUNTIF(PensGameDates4[Date],U51)+1","v":3},"201901280PIT.html",49,"https://www.hockey-reference.com/boxscores/201901280PIT.html"]
[50,"2019-01-30","20:00:00","Home",null,"Tampa Bay Lightning",null,"01/30/2019 Tampa Bay Lightning (TBL)",null,null,null,"Tampa Bay Lightning (TBL)",null,null,"TBL",null,"2018-10-16","Dallas Stars","New Jersey Devils",null,"2019-01-30",{"$f":"COUNTIF(PensGameDates4[Date],U52)+1","v":3},"201901300PIT.html",50,"https://www.hockey-reference.com/boxscores/201901300PIT.html"]
[51,"2019-02-01","19:00:00","Home",null,"Ottawa Senators",null,"02/01/2019 Ottawa Senators (OTT)",null,null,null,"Ottawa Senators (OTT)",null,null,"OTT",null,"2018-10-16","Colorado Avalanche","New York Rangers",null,"2019-02-01",{"$f":"COUNTIF(PensGameDates4[Date],U53)+1","v":9},"201902010PIT.html",51,"https://www.hockey-reference.com/boxscores/201902010PIT.html"]
[52,"2019-02-02","19:00:00","Away","@","Toronto Maple Leafs",null,"02/02/2019 @Toronto Maple Leafs (TPR)",null,null,null,"@Toronto Maple Leafs (TPR)",null,null,"TPR",null,"2018-10-16","Florida Panthers","Philadelphia Flyers",null,"2019-02-02",{"$f":"COUNTIF(PensGameDates4[Date],U54)+1","v":14},"201902020TOR.html",52,"https://www.hockey-reference.com/boxscores/201902020TOR.html"]
[53,"2019-02-05","19:00:00","Home",null,"Carolina Hurricanes",null,"02/05/2019 Carolina Hurricanes (CAR)",null,null,null,"Carolina Hurricanes (CAR)",null,null,"CAR",null,"2018-10-16","Vancouver Canucks","Pittsburgh Penguins",null,"2019-02-05",{"$f":"COUNTIF(PensGameDates4[Date],U55)+1","v":13},"201902050PIT.html",53,"https://www.hockey-reference.com/boxscores/201902050PIT.html"]
[54,"2019-02-07","19:00:00","Away","@","Florida Panthers",null,"02/07/2019 @Florida Panthers (FLA)",null,null,null,"@Florida Panthers (FLA)",null,null,"FLA",null,"2018-10-16","Carolina Hurricanes","Tampa Bay Lightning",null,"2019-02-07",{"$f":"COUNTIF(PensGameDates4[Date],U56)+1","v":15},"201902070FLA.html",54,"https://www.hockey-reference.com/boxscores/201902070FLA.html"]
[55,"2019-02-09","19:00:00","Away","@","Tampa Bay Lightning",null,"02/09/2019 @Tampa Bay Lightning (TBL)",null,null,null,"@Tampa Bay Lightning (TBL)",null,null,"TBL",null,"2018-10-16","Buffalo Sabres","Vegas Golden Knights",null,"2019-02-09",{"$f":"COUNTIF(PensGameDates4[Date],U57)+1","v":15},"201902090TBL.html",55,"https://www.hockey-reference.com/boxscores/201902090TBL.html"]
[56,"2019-02-11","19:00:00","Away","@","Philadelphia Flyers",null,"02/11/2019 @Philadelphia Flyers (PHI)",null,null,null,"@Philadelphia Flyers (PHI)",null,null,"PHI",null,"2018-10-16","Edmonton Oilers","Winnipeg Jets",null,"2019-02-11",{"$f":"COUNTIF(PensGameDates4[Date],U58)+1","v":4},"201902110PHI.html",56,"https://www.hockey-reference.com/boxscores/201902110PHI.html"]
[57,"2019-02-13","20:00:00","Home",null,"Edmonton Oilers",null,"02/13/2019 Edmonton Oilers (EMD)",null,null,null,"Edmonton Oilers (EMD)",null,null,"EMD",null,"2018-10-18","Philadelphia Flyers","Columbus Blue Jackets",null,"2019-02-13",{"$f":"COUNTIF(PensGameDates4[Date],U59)+1","v":3},"201902130PIT.html",57,"https://www.hockey-reference.com/boxscores/201902130PIT.html"]
[58,"2019-02-16","13:00:00","Home",null,"Calgary Flames",null,"02/16/2019 Calgary Flames (CGY)",null,null,null,"Calgary Flames (CGY)",null,null,"CGY",null,"2018-10-18","Arizona Coyotes","Chicago Blackhawks",null,"2019-02-16",{"$f":"COUNTIF(PensGameDates4[Date],U60)+1","v":13},"201902160PIT.html",58,"https://www.hockey-reference.com/boxscores/201902160PIT.html"]
[59,"2019-02-17","12:30:00","Home",null,"New York Rangers",null,"02/17/2019 New York Rangers (NYR)",null,null,null,"New York Rangers (NYR)",null,null,"NYR",null,"2018-10-18","Boston Bruins","Edmonton Oilers",null,"2019-02-17",{"$f":"COUNTIF(PensGameDates4[Date],U61)+1","v":7},"201902170PIT.html",59,"https://www.hockey-reference.com/boxscores/201902170PIT.html"]
[60,"2019-02-19","19:00:00","Away","@","New Jersey Devils",null,"02/19/2019 @New Jersey Devils (NJD)",null,null,null,"@New Jersey Devils (NJD)",null,null,"NJD",null,"2018-10-18","New York Islanders","Los Angeles Kings",null,"2019-02-19",{"$f":"COUNTIF(PensGameDates4[Date],U62)+1","v":10},"201902190NJD.html",60,"https://www.hockey-reference.com/boxscores/201902190NJD.html"]
[61,"2019-02-21","19:00:00","Home",null,"San Jose Sharks",null,"02/21/2019 San Jose Sharks (SJS)",null,null,null,"San Jose Sharks (SJS)",null,null,"SJS",null,"2018-10-18","Colorado Avalanche","New Jersey Devils",null,"2019-02-21",{"$f":"COUNTIF(PensGameDates4[Date],U63)+1","v":12},"201902210PIT.html",61,"https://www.hockey-reference.com/boxscores/201902210PIT.html"]
[62,"2019-02-23","20:00:00","Away","@","Philadelphia Flyers",null,"02/23/2019 @Philadelphia Flyers (PHI)",null,null,null,"@Philadelphia Flyers (PHI)",null,null,"PHI",null,"2018-10-18","Buffalo Sabres","San Jose Sharks",null,"2019-02-23",{"$f":"COUNTIF(PensGameDates4[Date],U64)+1","v":12},"201902230PHI.html",62,"https://www.hockey-reference.com/boxscores/201902230PHI.html"]
[63,"2019-02-26","19:00:00","Away","@","Columbus Blue Jackets",null,"02/26/2019 @Columbus Blue Jackets (CBJ)",null,null,null,"@Columbus Blue Jackets (CBJ)",null,null,"CBJ",null,"2018-10-18","Detroit Red Wings","Tampa Bay Lightning",null,"2019-02-26",{"$f":"COUNTIF(PensGameDates4[Date],U65)+1","v":12},"201902260CBJ.html",63,"https://www.hockey-reference.com/boxscores/201902260CBJ.html"]
[64,"2019-03-01","19:00:00","Away","@","Buffalo Sabres",null,"03/01/2019 @Buffalo Sabres (BUF)",null,null,null,"@Buffalo Sabres (BUF)",null,null,"BUF",null,"2018-10-18","Pittsburgh Penguins","Toronto Maple Leafs",null,"2019-03-01",{"$f":"COUNTIF(PensGameDates4[Date],U66)+1","v":9},"201903010BUF.html",64,"https://www.hockey-reference.com/boxscores/201903010BUF.html"]
[65,"2019-03-02","19:00:00","Away","@","Montreal Canadiens",null,{"$f":"TEXT(B67,\"mm/dd/yyyy\")&\" \"&E67&F67&\" (\"&O67&\")\"","v":"03/02/2019 @Montreal Canadiens (MTL)"},null,null,null,"@Montreal Canadiens (MTL)",null,null,"MTL",null,"2018-10-18","Vancouver Canucks","Winnipeg Jets",null,"2019-03-02",{"$f":"COUNTIF(PensGameDates4[Date],U67)+1","v":11},"201903020MTL.html",65,{"$f":"\"https://www.hockey-reference.com/boxscores/\"&W67","v":"https://www.hockey-reference.com/boxscores/201903020MTL.html"}]
[66,"2019-03-05","19:00:00","Home",null,"Florida Panthers",null,"03/05/2019 Florida Panthers (FLA)",null,null,null,"Florida Panthers (FLA)",null,null,"FLA",null,"2018-10-23","Arizona Coyotes","Columbus Blue Jackets",null,"2019-03-05",{"$f":"COUNTIF(PensGameDates4[Date],U68)+1","v":11},"201903050PIT.html",66,"https://www.hockey-reference.com/boxscores/201903050PIT.html"]
[67,"2019-03-07","19:00:00","Home",null,"Columbus Blue Jackets",null,"03/07/2019 Columbus Blue Jackets (CBJ)",null,null,null,{"$f":"TRIM(RIGHT(H69,LEN(H69)-10))","v":"Columbus Blue Jackets (CBJ)"},null,null,"CBJ",null,"2018-10-23","Anaheim Ducks","Chicago Blackhawks",null,"2019-03-07",{"$f":"COUNTIF(PensGameDates4[Date],U69)+1","v":12},"201903070PIT.html",{"$f":"A68+1","v":67},"https://www.hockey-reference.com/boxscores/201903070PIT.html"]
[68,"2019-03-09","19:00:00","Away","@","Columbus Blue Jackets",null,"03/09/2019 @Columbus Blue Jackets (CBJ)",null,null,null,"@Columbus Blue Jackets (CBJ)",null,null,"CBJ",null,"2018-10-23","Los Angeles Kings","Dallas Stars",null,"2019-03-09",{"$f":"COUNTIF(PensGameDates4[Date],U70)+1","v":13},"201903090CBJ.html",68,"https://www.hockey-reference.com/boxscores/201903090CBJ.html"]
[69,"2019-03-10","19:30:00","Home",null,"Boston Bruins",null,"03/10/2019 Boston Bruins (BOS)",null,null,null,"Boston Bruins (BOS)",null,null,"BOS",null,"2018-10-23","Pittsburgh Penguins","Edmonton Oilers",null,"2019-03-10",{"$f":"COUNTIF(PensGameDates4[Date],U71)+1","v":6},"201903100PIT.html",69,"https://www.hockey-reference.com/boxscores/201903100PIT.html"]
[70,"2019-03-12","19:00:00","Home",null,"Washington Capitals",null,"03/12/2019 Washington Capitals (WSH)",null,null,null,"Washington Capitals (WSH)",null,null,"WSH",null,"2018-10-23","Calgary Flames","Montreal Canadiens",null,"2019-03-12",{"$f":"COUNTIF(PensGameDates4[Date],U72)+1","v":9},"201903120PIT.html",70,"https://www.hockey-reference.com/boxscores/201903120PIT.html"]
[71,"2019-03-14","19:00:00","Away","@","Buffalo Sabres",null,"03/14/2019 @Buffalo Sabres (BUF)",null,null,null,"@Buffalo Sabres (BUF)",null,null,"BUF",null,"2018-10-23","San Jose Sharks","Nashville Predators",null,"2019-03-14",{"$f":"COUNTIF(PensGameDates4[Date],U73)+1","v":11},"201903140BUF.html",71,"https://www.hockey-reference.com/boxscores/201903140BUF.html"]
[72,"2019-03-16","13:00:00","Home",null,"St. Louis Blues",null,"03/16/2019 St. Louis Blues (STL)",null,null,null,"St. Louis Blues (STL)",null,null,"STL",null,"2018-10-23","Florida Panthers","New York Rangers",null,"2019-03-16",{"$f":"COUNTIF(PensGameDates4[Date],U74)+1","v":13},"201903160PIT.html",72,"https://www.hockey-reference.com/boxscores/201903160PIT.html"]
[73,"2019-03-17","19:30:00","Home",null,"Philadelphia Flyers",null,"03/17/2019 Philadelphia Flyers (PHI)",null,null,null,"Philadelphia Flyers (PHI)",null,null,"PHI",null,"2018-10-23","Boston Bruins","Ottawa Senators",null,"2019-03-17",{"$f":"COUNTIF(PensGameDates4[Date],U75)+1","v":8},"201903170PIT.html",73,"https://www.hockey-reference.com/boxscores/201903170PIT.html"]
[74,"2019-03-19","19:00:00","Away","@","Carolina Hurricanes",null,"03/19/2019 @Carolina Hurricanes (CAR)",null,null,null,"@Carolina Hurricanes (CAR)",null,null,"CAR",null,"2018-10-25","Vancouver Canucks","Arizona Coyotes",null,"2019-03-19",{"$f":"COUNTIF(PensGameDates4[Date],U76)+1","v":11},"201903190CAR.html",74,"https://www.hockey-reference.com/boxscores/201903190CAR.html"]
[75,"2019-03-21","20:00:00","Away","@","Nashville Predators",null,"03/21/2019 @Nashville Predators (NSH)",null,null,null,"@Nashville Predators (NSH)",null,null,"NSH",null,"2018-10-25","Philadelphia Flyers","Boston Bruins",null,"2019-03-21",{"$f":"COUNTIF(PensGameDates4[Date],U77)+1","v":13},"201903210NSH.html",75,"https://www.hockey-reference.com/boxscores/201903210NSH.html"]
[76,"2019-03-23","20:00:00","Away","@","Dallas Stars",null,"03/23/2019 @Dallas Stars (DAL)",null,null,null,"@Dallas Stars (DAL)",null,null,"DAL",null,"2018-10-25","Montreal Canadiens","Buffalo Sabres",null,"2019-03-23",{"$f":"COUNTIF(PensGameDates4[Date],U78)+1","v":15},"201903230DAL.html",76,"https://www.hockey-reference.com/boxscores/201903230DAL.html"]
[77,"2019-03-25","19:00:00","Away","@","New York Rangers",null,"03/25/2019 @New York Rangers (NYR)",null,null,null,"@New York Rangers (NYR)",null,null,"NYR",null,"2018-10-25","Pittsburgh Penguins","Calgary Flames",null,"2019-03-25",{"$f":"COUNTIF(PensGameDates4[Date],U79)+1","v":10},"201903250NYR.html",77,"https://www.hockey-reference.com/boxscores/201903250NYR.html"]
[78,"2019-03-29","19:00:00","Home",null,"Nashville Predators",null,"03/29/2019 Nashville Predators (NSH)",null,null,null,"Nashville Predators (NSH)",null,null,"NSH",null,"2018-10-25","New York Rangers","Chicago Blackhawks",null,"2019-03-29",{"$f":"COUNTIF(PensGameDates4[Date],U80)+1","v":7},"201903290PIT.html",78,"https://www.hockey-reference.com/boxscores/201903290PIT.html"]
[79,"2019-03-31","17:00:00","Home",null,"Carolina Hurricanes",null,"03/31/2019 Carolina Hurricanes (CAR)",null,null,null,"Carolina Hurricanes (CAR)",null,null,"CAR",null,"2018-10-25","Anaheim Ducks","Dallas Stars",null,"2019-03-31",{"$f":"COUNTIF(PensGameDates4[Date],U81)+1","v":7},"201903310PIT.html",79,"https://www.hockey-reference.com/boxscores/201903310PIT.html"]
[80,"2019-04-02","19:30:00","Away","@","Detroit Red Wings",null,"04/02/2019 @Detroit Red Wings (DET)",null,null,null,"@Detroit Red Wings (DET)",null,null,"DET",null,"2018-10-25","Washington Capitals","Edmonton Oilers",null,"2019-04-02",{"$f":"COUNTIF(PensGameDates4[Date],U82)+1","v":11},"201904020DET.html",80,"https://www.hockey-reference.com/boxscores/201904020DET.html"]
[81,"2019-04-04","19:00:00","Home",null,"Detroit Red Wings",null,"04/04/2019 Detroit Red Wings (DET)",null,null,null,"Detroit Red Wings (DET)",null,null,"DET",null,"2018-10-25","Los Angeles Kings","Minnesota Wild",null,"2019-04-04",{"$f":"COUNTIF(PensGameDates4[Date],U83)+1","v":13},"201904040PIT.html",81,"https://www.hockey-reference.com/boxscores/201904040PIT.html"]
[82,"2019-04-06","19:00:00","Home",null,"New York Rangers",null,"04/06/2019 New York Rangers (NYR)",null,null,null,"New York Rangers (NYR)",null,null,"NYR",null,"2018-10-25","Nashville Predators","New Jersey Devils",null,"2019-04-06",{"$f":"COUNTIF(PensGameDates4[Date],U84)+1","v":16},"201904060PIT.html",82,"https://www.hockey-reference.com/boxscores/201904060PIT.html"]
[null,null,null,null,null,null,null,null,null,null,null,null,null,null,null,null,"2018-10-25","Columbus Blue Jackets","St. Louis Blues"]
[null,null,null,null,null,null,null,null,null,null,null,null,null,null,null,null,"2018-10-27","Tampa Bay Lightning","Arizona Coyotes"]
[null,null,null,null,null,null,null,null,null,null,null,null,null,null,null,null,"2018-10-27","Montreal Canadiens","Boston Bruins"]
[null,null,null,null,null,null,null,null,null,null,null,null,null,null,null,null,"2018-10-27","Buffalo Sabres","Columbus Blue Jackets"]
[null,null,null,null,null,null,null,null,null,null,null,null,null,null,null,null,"2018-10-27","Washington Capitals","Calgary Flames"]
[null,null,null,null,null,null,null,null,null,null,null,null,null,null,null,null,"2018-10-27","Colorado Avalanche","Minnesota Wild"]
[null,null,null,null,null,null,null,null,null,null,null,null,null,null,null,null,"2018-10-27","Florida Panthers","New Jersey Devils"]
[null,null,null,null,null,null,null,null,null,null,null,null,null,null,null,null,"2018-10-27","Edmonton Oilers","Nashville Predators"]
[null,null,null,null,null,null,null,null,null,null,null,null,null,null,null,null,"2018-10-27","New York Islanders","Philadelphia Flyers"]
[null,null,null,null,null,null,null,null,null,null,null,null,null,null,null,null,"2018-10-27","Chicago Blackhawks","St. Louis Blues"]
[null,null,null,null,null,null,null,null,null,null,null,null,null,null,null,null,"2018-10-27","Winnipeg Jets","Toronto Maple Leafs"]
[null,null,null,null,null,null,null,null,null,null,null,null,null,null,null,null,"2018-10-27","Pittsburgh Penguins","Vancouver Canucks"]
[null,null,null,null,null,null,null,null,null,null,null,null,null,null,null,null,"2018-10-30","Philadelphia Flyers","Anaheim Ducks"]
[null,null,null,null,null,null,null,null,null,null,null,null,null,null,null,null,"2018-10-30","Ottawa Senators","Arizona Coyotes"]
[null,null,null,null,null,null,null,null,null,null,null,null,null,null,null,null,"2018-10-30","Calgary Flames","Buffalo Sabres"]
[null,null,null,null,null,null,null,null,null,null,null,null,null,null,null,null,"2018-10-30","Boston Bruins","Carolina Hurricanes"]
[null,null,null,null,null,null,null,null,null,null,null,null,null,null,null,null,"2018-10-30","Detroit Red Wings","Columbus Blue Jackets"]
[null,null,null,null,null,null,null,null,null,null,null,null,null,null,null,null,"2018-10-30","Minnesota Wild","Edmonton Oilers"]
[null,null,null,null,null,null,null,null,null,null,null,null,null,null,null,null,"2018-10-30","Dallas Stars","Montreal Canadiens"]
[null,null,null,null,null,null,null,null,null,null,null,null,null,null,null,null,"2018-10-30","Vegas Golden Knights","Nashville Predators"]
[null,null,null,null,null,null,null,null,null,null,null,null,null,null,null,null,"2018-10-30","New York Islanders","Pittsburgh Penguins"]
[null,null,null,null,null,null,null,null,null,null,null,null,null,null,null,null,"2018-10-30","New York Rangers","San Jose Sharks"]
[null,null,null,null,null,null,null,null,null,null,null,null,null,null,null,null,"2018-10-30","New Jersey Devils","Tampa Bay Lightning"]
[null,null,null,null,null,null,null,null,null,null,null,null,null,null,null,null,"2018-11-01","New York Rangers","Anaheim Ducks"]
[null,null,null,null,null,null,null,null,null,null,null,null,null,null,null,null,"2018-11-01","Colorado Avalanche","Calgary Flames"]
[null,null,null,null,null,null,null,null,null,null,null,null,null,null,null,null,"2018-11-01","New Jersey Devils","Detroit Red Wings"]
[null,null,null,null,null,null,null,null,null,null,null,null,null,null,null,null,"2018-11-01","Chicago Blackhawks","Edmonton Oilers"]
[null,null,null,null,null,null,null,null,null,null,null,null,null,null,null,null,"2018-11-01","Winnipeg Jets","Florida Panthers"]
[null,null,null,null,null,null,null,null,null,null,null,null,null,null,null,null,"2018-11-01","Philadelphia Flyers","Los Angeles Kings"]
[null,null,null,null,null,null,null,null,null,null,null,null,null,null,null,null,"2018-11-01","Washington Capitals","Montreal Canadiens"]
[null,null,null,null,null,null,null,null,null,null,null,null,null,null,null,null,"2018-11-01","Pittsburgh Penguins","New York Islanders"]
[null,null,null,null,null,null,null,null,null,null,null,null,null,null,null,null,"2018-11-01","Buffalo Sabres","Ottawa Senators"]
[null,null,null,null,null,null,null,null,null,null,null,null,null,null,null,null,"2018-11-01","Columbus Blue Jackets","San Jose Sharks"]
[null,null,null,null,null,null,null,null,null,null,null,null,null,null,null,null,"2018-11-01","Vegas Golden Knights","St. Louis Blues"]
[null,null,null,null,null,null,null,null,null,null,null,null,null,null,null,null,"2018-11-01","Nashville Predators","Tampa Bay Lightning"]
[null,null,null,null,null,null,null,null,null,null,null,null,null,null,null,null,"2018-11-01","Dallas Stars","Toronto Maple Leafs"]
[null,null,null,null,null,null,null,null,null,null,null,null,null,null,null,null,"2018-11-03","Ottawa Senators","Buffalo Sabres"]
[null,null,null,null,null,null,null,null,null,null,null,null,null,null,null,null,"2018-11-03","Chicago Blackhawks","Calgary Flames"]
[null,null,null,null,null,null,null,null,null,null,null,null,null,null,null,null,"2018-11-03","Edmonton Oilers","Detroit Red Wings"]
[null,null,null,null,null,null,null,null,null,null,null,null,null,null,null,null,"2018-11-03","Columbus Blue Jackets","Los Angeles Kings"]
[null,null,null,null,null,null,null,null,null,null,null,null,null,null,null,null,"2018-11-03","Tampa Bay Lightning","Montreal Canadiens"]
[null,null,null,null,null,null,null,null,null,null,null,null,null,null,null,null,"2018-11-03","Boston Bruins","Nashville Predators"]
[null,null,null,null,null,null,null,null,null,null,null,null,null,null,null,null,"2018-11-03","New Jersey Devils","New York Islanders"]
[null,null,null,null,null,null,null,null,null,null,null,null,null,null,null,null,"2018-11-03","Toronto Maple Leafs","Pittsburgh Penguins"]
[null,null,null,null,null,null,null,null,null,null,null,null,null,null,null,null,"2018-11-03","Philadelphia Flyers","San Jose Sharks"]
[null,null,null,null,null,null,null,null,null,null,null,null,null,null,null,null,"2018-11-03","Minnesota Wild","St. Louis Blues"]
[null,null,null,null,null,null,null,null,null,null,null,null,null,null,null,null,"2018-11-03","Carolina Hurricanes","Vegas Golden Knights"]
[null,null,null,null,null,null,null,null,null,null,null,null,null,null,null,null,"2018-11-03","Dallas Stars","Washington Capitals"]
[null,null,null,null,null,null,null,null,null,null,null,null,null,null,null,null,"2018-11-05","Philadelphia Flyers","Arizona Coyotes"]
[null,null,null,null,null,null,null,null,null,null,null,null,null,null,null,null,"2018-11-05","Dallas Stars","Boston Bruins"]
[null,null,null,null,null,null,null,null,null,null,null,null,null,null,null,null,"2018-11-05","Montreal Canadiens","New York Islanders"]
[null,null,null,null,null,null,null,null,null,null,null,null,null,null,null,null,"2018-11-05","New Jersey Devils","Pittsburgh Penguins"]
[null,null,null,null,null,null,null,null,null,null,null,null,null,null,null,null,"2018-11-05","Edmonton Oilers","Washington Capitals"]
[null,null,null,null,null,null,null,null,null,null,null,null,null,null,null,null,"2018-11-07","Calgary Flames","Anaheim Ducks"]
[null,null,null,null,null,null,null,null,null,null,null,null,null,null,null,null,"2018-11-07","Nashville Predators","Colorado Avalanche"]
[null,null,null,null,null,null,null,null,null,null,null,null,null,null,null,null,"2018-11-07","Pittsburgh Penguins","Washington Capitals"]
[null,null,null,null,null,null,null,null,null,null,null,null,null,null,null,null,"2018-11-10","Toronto Maple Leafs","Boston Bruins"]
[null,null,null,null,null,null,null,null,null,null,null,null,null,null,null,null,"2018-11-10","Vancouver Canucks","Buffalo Sabres"]
[null,null,null,null,null,null,null,null,null,null,null,null,null,null,null,null,"2018-11-10","Detroit Red Wings","Carolina Hurricanes"]
[null,null,null,null,null,null,null,null,null,null,null,null,null,null,null,null,"2018-11-10","New York Rangers","Columbus Blue Jackets"]
[null,null,null,null,null,null,null,null,null,null,null,null,null,null,null,null,"2018-11-10","Nashville Predators","Dallas Stars"]
[null,null,null,null,null,null,null,null,null,null,null,null,null,null,null,null,"2018-11-10","New York Islanders","Florida Panthers"]
[null,null,null,null,null,null,null,null,null,null,null,null,null,null,null,null,"2018-11-10","Calgary Flames","Los Angeles Kings"]
[null,null,null,null,null,null,null,null,null,null,null,null,null,null,null,null,"2018-11-10","Vegas Golden Knights","Montreal Canadiens"]
[null,null,null,null,null,null,null,null,null,null,null,null,null,null,null,null,"2018-11-10","Chicago Blackhawks","Philadelphia Flyers"]
[null,null,null,null,null,null,null,null,null,null,null,null,null,null,null,null,"2018-11-10","Arizona Coyotes","Pittsburgh Penguins"]
[null,null,null,null,null,null,null,null,null,null,null,null,null,null,null,null,"2018-11-10","Ottawa Senators","Tampa Bay Lightning"]
[null,null,null,null,null,null,null,null,null,null,null,null,null,null,null,null,"2018-11-13","Tampa Bay Lightning","Buffalo Sabres"]
[null,null,null,null,null,null,null,null,null,null,null,null,null,null,null,null,"2018-11-13","Arizona Coyotes","Detroit Red Wings"]
[null,null,null,null,null,null,null,null,null,null,null,null,null,null,null,null,"2018-11-13","Montreal Canadiens","Edmonton Oilers"]
[null,null,null,null,null,null,null,null,null,null,null,null,null,null,null,null,"2018-11-13","Toronto Maple Leafs","Los Angeles Kings"]
[null,null,null,null,null,null,null,null,null,null,null,null,null,null,null,null,"2018-11-13","Washington Capitals","Minnesota Wild"]
[null,null,null,null,null,null,null,null,null,null,null,null,null,null,null,null,"2018-11-13","Pittsburgh Penguins","New Jersey Devils"]
[null,null,null,null,null,null,null,null,null,null,null,null,null,null,null,null,"2018-11-13","Vancouver Canucks","New York Islanders"]
[null,null,null,null,null,null,null,null,null,null,null,null,null,null,null,null,"2018-11-13","Florida Panthers","Philadelphia Flyers"]
[null,null,null,null,null,null,null,null,null,null,null,null,null,null,null,null,"2018-11-13","Nashville Predators","San Jose Sharks"]
[null,null,null,null,null,null,null,null,null,null,null,null,null,null,null,null,"2018-11-15","Nashville Predators","Arizona Coyotes"]
[null,null,null,null,null,null,null,null,null,null,null,null,null,null,null,null,"2018-11-15","Florida Panthers","Columbus Blue Jackets"]
[null,null,null,null,null,null,null,null,null,null,null,null,null,null,null,null,"2018-11-15","Montreal Canadiens","Calgary Flames"]
[null,null,null,null,null,null,null,null,null,null,null,null,null,null,null,null,"2018-11-15","Vancouver Canucks","Minnesota Wild"]
[null,null,null,null,null,null,null,null,null,null,null,null,null,null,null,null,"2018-11-15","New York Rangers","New York Islanders"]
[null,null,null,null,null,null,null,null,null,null,null,null,null,null,null,null,"2018-11-15","Detroit Red Wings","Ottawa Senators"]
[null,null,null,null,null,null,null,null,null,null,null,null,null,null,null,null,"2018-11-15","New Jersey Devils","Philadelphia Flyers"]
[null,null,null,null,null,null,null,null,null,null,null,null,null,null,null,null,"2018-11-15","Tampa Bay Lightning","Pittsburgh Penguins"]
[null,null,null,null,null,null,null,null,null,null,null,null,null,null,null,null,"2018-11-15","Toronto Maple Leafs","San Jose Sharks"]
[null,null,null,null,null,null,null,null,null,null,null,null,null,null,null,null,"2018-11-17","Boston Bruins","Arizona Coyotes"]
[null,null,null,null,null,null,null,null,null,null,null,null,null,null,null,null,"2018-11-17","Columbus Blue Jackets","Carolina Hurricanes"]
[null,null,null,null,null,null,null,null,null,null,null,null,null,null,null,null,"2018-11-17","Edmonton Oilers","Calgary Flames"]
[null,null,null,null,null,null,null,null,null,null,null,null,null,null,null,null,"2018-11-17","Buffalo Sabres","Minnesota Wild"]
[null,null,null,null,null,null,null,null,null,null,null,null,null,null,null,null,"2018-11-17","Detroit Red Wings","New Jersey Devils"]
[null,null,null,null,null,null,null,null,null,null,null,null,null,null,null,null,"2018-11-17","Los Angeles Kings","Nashville Predators"]
[null,null,null,null,null,null,null,null,null,null,null,null,null,null,null,null,"2018-11-17","Florida Panthers","New York Rangers"]
[null,null,null,null,null,null,null,null,null,null,null,null,null,null,null,null,"2018-11-17","Pittsburgh Penguins","Ottawa Senators"]
[null,null,null,null,null,null,null,null,null,null,null,null,null,null,null,null,"2018-11-17","Tampa Bay Lightning","Philadelphia Flyers"]
[null,null,null,null,null,null,null,null,null,null,null,null,null,null,null,null,"2018-11-17","St. Louis Blues","San Jose Sharks"]
[null,null,null,null,null,null,null,null,null,null,null,null,null,null,null,null,"2018-11-17","Montreal Canadiens","Vancouver Canucks"]
[null,null,null,null,null,null,null,null,null,null,null,null,null,null,null,null,"2018-11-19","Vegas Golden Knights","Calgary Flames"]
[null,null,null,null,null,null,null,null,null,null,null,null,null,null,null,null,"2018-11-19","Washington Capitals","Montreal Canadiens"]
[null,null,null,null,null,null,null,null,null,null,null,null,null,null,null,null,"2018-11-19","Tampa Bay Lightning","Nashville Predators"]
[null,null,null,null,null,null,null,null,null,null,null,null,null,null,null,null,"2018-11-19","Dallas Stars","New York Rangers"]
[null,null,null,null,null,null,null,null,null,null,null,null,null,null,null,null,"2018-11-19","Florida Panthers","Ottawa Senators"]
[null,null,null,null,null,null,null,null,null,null,null,null,null,null,null,null,"2018-11-19","Buffalo Sabres","Pittsburgh Penguins"]
[null,null,null,null,null,null,null,null,null,null,null,null,null,null,null,null,"2018-11-19","Los Angeles Kings","St. Louis Blues"]
[null,null,null,null,null,null,null,null,null,null,null,null,null,null,null,null,"2018-11-19","Columbus Blue Jackets","Toronto Maple Leafs"]
[null,null,null,null,null,null,null,null,null,null,null,null,null,null,null,null,"2018-11-19","Winnipeg Jets","Vancouver Canucks"]
[null,null,null,null,null,null,null,null,null,null,null,null,null,null,null,null,"2018-11-21","Vancouver Canucks","Anaheim Ducks"]
[null,null,null,null,null,null,null,null,null,null,null,null,null,null,null,null,"2018-11-21","Vegas Golden Knights","Arizona Coyotes"]
[null,null,null,null,null,null,null,null,null,null,null,null,null,null,null,null,"2018-11-21","Philadelphia Flyers","Buffalo Sabres"]
[null,null,null,null,null,null,null,null,null,null,null,null,null,null,null,null,"2018-11-21","Toronto Maple Leafs","Carolina Hurricanes"]
[null,null,null,null,null,null,null,null,null,null,null,null,null,null,null,null,"2018-11-21","Winnipeg Jets","Calgary Flames"]
[null,null,null,null,null,null,null,null,null,null,null,null,null,null,null,null,"2018-11-21","Boston Bruins","Detroit Red Wings"]
[null,null,null,null,null,null,null,null,null,null,null,null,null,null,null,null,"2018-11-21","Colorado Avalanche","Los Angeles Kings"]
[null,null,null,null,null,null,null,null,null,null,null,null,null,null,null,null,"2018-11-21","Ottawa Senators","Minnesota Wild"]
[null,null,null,null,null,null,null,null,null,null,null,null,null,null,null,null,"2018-11-21","Montreal Canadiens","New Jersey Devils"]
[null,null,null,null,null,null,null,null,null,null,null,null,null,null,null,null,"2018-11-21","St. Louis Blues","Nashville Predators"]
[null,null,null,null,null,null,null,null,null,null,null,null,null,null,null,null,"2018-11-21","New York Islanders","New York Rangers"]
[null,null,null,null,null,null,null,null,null,null,null,null,null,null,null,null,"2018-11-21","Dallas Stars","Pittsburgh Penguins"]
[null,null,null,null,null,null,null,null,null,null,null,null,null,null,null,null,"2018-11-21","Florida Panthers","Tampa Bay Lightning"]
[null,null,null,null,null,null,null,null,null,null,null,null,null,null,null,null,"2018-11-21","Chicago Blackhawks","Washington Capitals"]
[null,null,null,null,null,null,null,null,null,null,null,null,null,null,null,null,"2018-11-23","Edmonton Oilers","Anaheim Ducks"]
[null,null,null,null,null,null,null,null,null,null,null,null,null,null,null,null,"2018-11-23","Colorado Avalanche","Arizona Coyotes"]
[null,null,null,null,null,null,null,null,null,null,null,null,null,null,null,null,"2018-11-23","Pittsburgh Penguins","Boston Bruins"]
[null,null,null,null,null,null,null,null,null,null,null,null,null,null,null,null,"2018-11-23","Montreal Canadiens","Buffalo Sabres"]
[null,null,null,null,null,null,null,null,null,null,null,null,null,null,null,null,"2018-11-23","Florida Panthers","Carolina Hurricanes"]
[null,null,null,null,null,null,null,null,null,null,null,null,null,null,null,null,"2018-11-23","Toronto Maple Leafs","Columbus Blue Jackets"]
[null,null,null,null,null,null,null,null,null,null,null,null,null,null,null,null,"2018-11-23","Ottawa Senators","Dallas Stars"]
[null,null,null,null,null,null,null,null,null,null,null,null,null,null,null,null,"2018-11-23","Winnipeg Jets","Minnesota Wild"]
[null,null,null,null,null,null,null,null,null,null,null,null,null,null,null,null,"2018-11-23","New York Islanders","New Jersey Devils"]
[null,null,null,null,null,null,null,null,null,null,null,null,null,null,null,null,"2018-11-23","New York Rangers","Philadelphia Flyers"]
[null,null,null,null,null,null,null,null,null,null,null,null,null,null,null,null,"2018-11-23","Vancouver Canucks","San Jose Sharks"]
[null,null,null,null,null,null,null,null,null,null,null,null,null,null,null,null,"2018-11-23","Nashville Predators","St. Louis Blues"]
[null,null,null,null,null,null,null,null,null,null,null,null,null,null,null,null,"2018-11-23","Chicago Blackhawks","Tampa Bay Lightning"]
[null,null,null,null,null,null,null,null,null,null,null,null,null,null,null,null,"2018-11-23","Calgary Flames","Vegas Golden Knights"]
[null,null,null,null,null,null,null,null,null,null,null,null,null,null,null,null,"2018-11-23","Detroit Red Wings","Washington Capitals"]
[null,null,null,null,null,null,null,null,null,null,null,null,null,null,null,null,"2018-11-24","Dallas Stars","Colorado Avalanche"]
[null,null,null,null,null,null,null,null,null,null,null,null,null,null,null,null,"2018-11-24","Buffalo Sabres","Detroit Red Wings"]
[null,null,null,null,null,null,null,null,null,null,null,null,null,null,null,null,"2018-11-24","Chicago Blackhawks","Florida Panthers"]
[null,null,null,null,null,null,null,null,null,null,null,null,null,null,null,null,"2018-11-24","Vancouver Canucks","Los Angeles Kings"]
[null,null,null,null,null,null,null,null,null,null,null,null,null,null,null,null,"2018-11-24","Boston Bruins","Montreal Canadiens"]
[null,null,null,null,null,null,null,null,null,null,null,null,null,null,null,null,"2018-11-24","Carolina Hurricanes","New York Islanders"]
[null,null,null,null,null,null,null,null,null,null,null,null,null,null,null,null,"2018-11-24","Washington Capitals","New York Rangers"]
[null,null,null,null,null,null,null,null,null,null,null,null,null,null,null,null,"2018-11-24","Columbus Blue Jackets","Pittsburgh Penguins"]
[null,null,null,null,null,null,null,null,null,null,null,null,null,null,null,null,"2018-11-24","Winnipeg Jets","St. Louis Blues"]
[null,null,null,null,null,null,null,null,null,null,null,null,null,null,null,null,"2018-11-24","Philadelphia Flyers","Toronto Maple Leafs"]
[null,null,null,null,null,null,null,null,null,null,null,null,null,null,null,null,"2018-11-24","San Jose Sharks","Vegas Golden Knights"]
[null,null,null,null,null,null,null,null,null,null,null,null,null,null,null,null,"2018-11-27","San Jose Sharks","Buffalo Sabres"]
[null,null,null,null,null,null,null,null,null,null,null,null,null,null,null,null,"2018-11-27","Vegas Golden Knights","Chicago Blackhawks"]
[null,null,null,null,null,null,null,null,null,null,null,null,null,null,null,null,"2018-11-27","Dallas Stars","Edmonton Oilers"]
[null,null,null,null,null,null,null,null,null,null,null,null,null,null,null,null,"2018-11-27","Arizona Coyotes","Minnesota Wild"]
[null,null,null,null,null,null,null,null,null,null,null,null,null,null,null,null,"2018-11-27","Carolina Hurricanes","Montreal Canadiens"]
[null,null,null,null,null,null,null,null,null,null,null,null,null,null,null,null,"2018-11-27","Colorado Avalanche","Nashville Predators"]
[null,null,null,null,null,null,null,null,null,null,null,null,null,null,null,null,"2018-11-27","Ottawa Senators","Philadelphia Flyers"]
[null,null,null,null,null,null,null,null,null,null,null,null,null,null,null,null,"2018-11-27","Anaheim Ducks","Tampa Bay Lightning"]
[null,null,null,null,null,null,null,null,null,null,null,null,null,null,null,null,"2018-11-27","Los Angeles Kings","Vancouver Canucks"]
[null,null,null,null,null,null,null,null,null,null,null,null,null,null,null,null,"2018-11-27","Pittsburgh Penguins","Winnipeg Jets"]
[null,null,null,null,null,null,null,null,null,null,null,null,null,null,null,null,"2018-11-28","Dallas Stars","Calgary Flames"]
[null,null,null,null,null,null,null,null,null,null,null,null,null,null,null,null,"2018-11-28","Pittsburgh Penguins","Colorado Avalanche"]
[null,null,null,null,null,null,null,null,null,null,null,null,null,null,null,null,"2018-11-28","St. Louis Blues","Detroit Red Wings"]
[null,null,null,null,null,null,null,null,null,null,null,null,null,null,null,null,"2018-11-28","Anaheim Ducks","Florida Panthers"]
[null,null,null,null,null,null,null,null,null,null,null,null,null,null,null,null,"2018-11-28","San Jose Sharks","Toronto Maple Leafs"]
[null,null,null,null,null,null,null,null,null,null,null,null,null,null,null,null,"2018-12-01","St. Louis Blues","Arizona Coyotes"]
[null,null,null,null,null,null,null,null,null,null,null,null,null,null,null,null,"2018-12-01","Detroit Red Wings","Boston Bruins"]
[null,null,null,null,null,null,null,null,null,null,null,null,null,null,null,null,"2018-12-01","Vegas Golden Knights","Edmonton Oilers"]
[null,null,null,null,null,null,null,null,null,null,null,null,null,null,null,null,"2018-12-01","Tampa Bay Lightning","Florida Panthers"]
[null,null,null,null,null,null,null,null,null,null,null,null,null,null,null,null,"2018-12-01","Toronto Maple Leafs","Minnesota Wild"]
[null,null,null,null,null,null,null,null,null,null,null,null,null,null,null,null,"2018-12-01","New York Rangers","Montreal Canadiens"]
[null,null,null,null,null,null,null,null,null,null,null,null,null,null,null,null,"2018-12-01","Winnipeg Jets","New Jersey Devils"]
[null,null,null,null,null,null,null,null,null,null,null,null,null,null,null,null,"2018-12-01","Chicago Blackhawks","Nashville Predators"]
[null,null,null,null,null,null,null,null,null,null,null,null,null,null,null,null,"2018-12-01","Columbus Blue Jackets","New York Islanders"]
[null,null,null,null,null,null,null,null,null,null,null,null,null,null,null,null,"2018-12-01","San Jose Sharks","Ottawa Senators"]
[null,null,null,null,null,null,null,null,null,null,null,null,null,null,null,null,"2018-12-01","Philadelphia Flyers","Pittsburgh Penguins"]
[null,null,null,null,null,null,null,null,null,null,null,null,null,null,null,null,"2018-12-01","Dallas Stars","Vancouver Canucks"]
[null,null,null,null,null,null,null,null,null,null,null,null,null,null,null,null,"2018-12-04","Toronto Maple Leafs","Buffalo Sabres"]
[null,null,null,null,null,null,null,null,null,null,null,null,null,null,null,null,"2018-12-04","Calgary Flames","Columbus Blue Jackets"]
[null,null,null,null,null,null,null,null,null,null,null,null,null,null,null,null,"2018-12-04","Tampa Bay Lightning","Detroit Red Wings"]
[null,null,null,null,null,null,null,null,null,null,null,null,null,null,null,null,"2018-12-04","Boston Bruins","Florida Panthers"]
[null,null,null,null,null,null,null,null,null,null,null,null,null,null,null,null,"2018-12-04","Arizona Coyotes","Los Angeles Kings"]
[null,null,null,null,null,null,null,null,null,null,null,null,null,null,null,null,"2018-12-04","Ottawa Senators","Montreal Canadiens"]
[null,null,null,null,null,null,null,null,null,null,null,null,null,null,null,null,"2018-12-04","Winnipeg Jets","New York Islanders"]
[null,null,null,null,null,null,null,null,null,null,null,null,null,null,null,null,"2018-12-04","Colorado Avalanche","Pittsburgh Penguins"]
[null,null,null,null,null,null,null,null,null,null,null,null,null,null,null,null,"2018-12-04","Minnesota Wild","Vancouver Canucks"]
[null,null,null,null,null,null,null,null,null,null,null,null,null,null,null,null,"2018-12-04","Washington Capitals","Vegas Golden Knights"]
[null,null,null,null,null,null,null,null,null,null,null,null,null,null,null,null,"2018-12-06","Washington Capitals","Arizona Coyotes"]
[null,null,null,null,null,null,null,null,null,null,null,null,null,null,null,null,"2018-12-06","Minnesota Wild","Calgary Flames"]
[null,null,null,null,null,null,null,null,null,null,null,null,null,null,null,null,"2018-12-06","Colorado Avalanche","Florida Panthers"]
[null,null,null,null,null,null,null,null,null,null,null,null,null,null,null,null,"2018-12-06","New Jersey Devils","Los Angeles Kings"]
[null,null,null,null,null,null,null,null,null,null,null,null,null,null,null,null,"2018-12-06","Montreal Canadiens","Ottawa Senators"]
[null,null,null,null,null,null,null,null,null,null,null,null,null,null,null,null,"2018-12-06","Columbus Blue Jackets","Philadelphia Flyers"]
[null,null,null,null,null,null,null,null,null,null,null,null,null,null,null,null,"2018-12-06","New York Islanders","Pittsburgh Penguins"]
[null,null,null,null,null,null,null,null,null,null,null,null,null,null,null,null,"2018-12-06","Boston Bruins","Tampa Bay Lightning"]
[null,null,null,null,null,null,null,null,null,null,null,null,null,null,null,null,"2018-12-06","Detroit Red Wings","Toronto Maple Leafs"]
[null,null,null,null,null,null,null,null,null,null,null,null,null,null,null,null,"2018-12-06","Nashville Predators","Vancouver Canucks"]
[null,null,null,null,null,null,null,null,null,null,null,null,null,null,null,null,"2018-12-06","Chicago Blackhawks","Vegas Golden Knights"]
[null,null,null,null,null,null,null,null,null,null,null,null,null,null,null,null,"2018-12-08","San Jose Sharks","Arizona Coyotes"]
[null,null,null,null,null,null,null,null,null,null,null,null,null,null,null,null,"2018-12-08","Toronto Maple Leafs","Boston Bruins"]
[null,null,null,null,null,null,null,null,null,null,null,null,null,null,null,null,"2018-12-08","Philadelphia Flyers","Buffalo Sabres"]
[null,null,null,null,null,null,null,null,null,null,null,null,null,null,null,null,"2018-12-08","Washington Capitals","Columbus Blue Jackets"]
[null,null,null,null,null,null,null,null,null,null,null,null,null,null,null,null,"2018-12-08","Nashville Predators","Calgary Flames"]
[null,null,null,null,null,null,null,null,null,null,null,null,null,null,null,null,"2018-12-08","New York Islanders","Detroit Red Wings"]
[null,null,null,null,null,null,null,null,null,null,null,null,null,null,null,null,"2018-12-08","New York Rangers","Florida Panthers"]
[null,null,null,null,null,null,null,null,null,null,null,null,null,null,null,null,"2018-12-08","Vegas Golden Knights","Los Angeles Kings"]
[null,null,null,null,null,null,null,null,null,null,null,null,null,null,null,null,"2018-12-08","Pittsburgh Penguins","Ottawa Senators"]
[null,null,null,null,null,null,null,null,null,null,null,null,null,null,null,null,"2018-12-08","Colorado Avalanche","Tampa Bay Lightning"]
[null,null,null,null,null,null,null,null,null,null,null,null,null,null,null,null,"2018-12-10","Los Angeles Kings","Detroit Red Wings"]
[null,null,null,null,null,null,null,null,null,null,null,null,null,null,null,null,"2018-12-10","Pittsburgh Penguins","New York Islanders"]
[null,null,null,null,null,null,null,null,null,null,null,null,null,null,null,null,"2018-12-10","New Jersey Devils","San Jose Sharks"]
[null,null,null,null,null,null,null,null,null,null,null,null,null,null,null,null,"2018-12-10","New York Rangers","Tampa Bay Lightning"]
[null,null,null,null,null,null,null,null,null,null,null,null,null,null,null,null,"2018-12-12","Dallas Stars","Anaheim Ducks"]
[null,null,null,null,null,null,null,null,null,null,null,null,null,null,null,null,"2018-12-12","Philadelphia Flyers","Calgary Flames"]
[null,null,null,null,null,null,null,null,null,null,null,null,null,null,null,null,"2018-12-12","Pittsburgh Penguins","Chicago Blackhawks"]
[null,null,null,null,null,null,null,null,null,null,null,null,null,null,null,null,"2018-12-12","Vegas Golden Knights","New York Islanders"]
[null,null,null,null,null,null,null,null,null,null,null,null,null,null,null,null,"2018-12-14","Washington Capitals","Carolina Hurricanes"]
[null,null,null,null,null,null,null,null,null,null,null,null,null,null,null,null,"2018-12-14","Winnipeg Jets","Chicago Blackhawks"]
[null,null,null,null,null,null,null,null,null,null,null,null,null,null,null,null,"2018-12-14","Ottawa Senators","Detroit Red Wings"]
[null,null,null,null,null,null,null,null,null,null,null,null,null,null,null,null,"2018-12-14","Philadelphia Flyers","Edmonton Oilers"]
[null,null,null,null,null,null,null,null,null,null,null,null,null,null,null,null,"2018-12-14","Vegas Golden Knights","New Jersey Devils"]
[null,null,null,null,null,null,null,null,null,null,null,null,null,null,null,null,"2018-12-14","Arizona Coyotes","New York Rangers"]
[null,null,null,null,null,null,null,null,null,null,null,null,null,null,null,null,"2018-12-14","Boston Bruins","Pittsburgh Penguins"]
[null,null,null,null,null,null,null,null,null,null,null,null,null,null,null,null,"2018-12-14","Colorado Avalanche","St. Louis Blues"]
[null,null,null,null,null,null,null,null,null,null,null,null,null,null,null,null,"2018-12-15","Anaheim Ducks","Columbus Blue Jackets"]
[null,null,null,null,null,null,null,null,null,null,null,null,null,null,null,null,"2018-12-15","Dallas Stars","Colorado Avalanche"]
[null,null,null,null,null,null,null,null,null,null,null,null,null,null,null,null,"2018-12-15","Toronto Maple Leafs","Florida Panthers"]
[null,null,null,null,null,null,null,null,null,null,null,null,null,null,null,null,"2018-12-15","Calgary Flames","Minnesota Wild"]
[null,null,null,null,null,null,null,null,null,null,null,null,null,null,null,null,"2018-12-15","Ottawa Senators","Montreal Canadiens"]
[null,null,null,null,null,null,null,null,null,null,null,null,null,null,null,null,"2018-12-15","New Jersey Devils","Nashville Predators"]
[null,null,null,null,null,null,null,null,null,null,null,null,null,null,null,null,"2018-12-15","Detroit Red Wings","New York Islanders"]
[null,null,null,null,null,null,null,null,null,null,null,null,null,null,null,null,"2018-12-15","Los Angeles Kings","Pittsburgh Penguins"]
[null,null,null,null,null,null,null,null,null,null,null,null,null,null,null,null,"2018-12-15","Philadelphia Flyers","Vancouver Canucks"]
[null,null,null,null,null,null,null,null,null,null,null,null,null,null,null,null,"2018-12-15","Buffalo Sabres","Washington Capitals"]
[null,null,null,null,null,null,null,null,null,null,null,null,null,null,null,null,"2018-12-17","Vegas Golden Knights","Columbus Blue Jackets"]
[null,null,null,null,null,null,null,null,null,null,null,null,null,null,null,null,"2018-12-17","New York Islanders","Colorado Avalanche"]
[null,null,null,null,null,null,null,null,null,null,null,null,null,null,null,null,"2018-12-17","Boston Bruins","Montreal Canadiens"]
[null,null,null,null,null,null,null,null,null,null,null,null,null,null,null,null,"2018-12-17","Nashville Predators","Ottawa Senators"]
[null,null,null,null,null,null,null,null,null,null,null,null,null,null,null,null,"2018-12-17","Anaheim Ducks","Pittsburgh Penguins"]
[null,null,null,null,null,null,null,null,null,null,null,null,null,null,null,null,"2018-12-19","Montreal Canadiens","Colorado Avalanche"]
[null,null,null,null,null,null,null,null,null,null,null,null,null,null,null,null,"2018-12-19","Pittsburgh Penguins","Washington Capitals"]
[null,null,null,null,null,null,null,null,null,null,null,null,null,null,null,null,"2018-12-20","Montreal Canadiens","Arizona Coyotes"]
[null,null,null,null,null,null,null,null,null,null,null,null,null,null,null,null,"2018-12-20","Anaheim Ducks","Boston Bruins"]
[null,null,null,null,null,null,null,null,null,null,null,null,null,null,null,null,"2018-12-20","Detroit Red Wings","Carolina Hurricanes"]
[null,null,null,null,null,null,null,null,null,null,null,null,null,null,null,null,"2018-12-20","New Jersey Devils","Columbus Blue Jackets"]
[null,null,null,null,null,null,null,null,null,null,null,null,null,null,null,null,"2018-12-20","Tampa Bay Lightning","Calgary Flames"]
[null,null,null,null,null,null,null,null,null,null,null,null,null,null,null,null,"2018-12-20","Chicago Blackhawks","Dallas Stars"]
[null,null,null,null,null,null,null,null,null,null,null,null,null,null,null,null,"2018-12-20","Nashville Predators","Philadelphia Flyers"]
[null,null,null,null,null,null,null,null,null,null,null,null,null,null,null,null,"2018-12-20","Minnesota Wild","Pittsburgh Penguins"]
[null,null,null,null,null,null,null,null,null,null,null,null,null,null,null,null,"2018-12-20","Winnipeg Jets","San Jose Sharks"]
[null,null,null,null,null,null,null,null,null,null,null,null,null,null,null,null,"2018-12-20","Florida Panthers","Toronto Maple Leafs"]
[null,null,null,null,null,null,null,null,null,null,null,null,null,null,null,null,"2018-12-20","St. Louis Blues","Vancouver Canucks"]
[null,null,null,null,null,null,null,null,null,null,null,null,null,null,null,null,"2018-12-20","New York Islanders","Vegas Golden Knights"]
[null,null,null,null,null,null,null,null,null,null,null,null,null,null,null,null,"2018-12-22","Colorado Avalanche","Arizona Coyotes"]
[null,null,null,null,null,null,null,null,null,null,null,null,null,null,null,null,"2018-12-22","Nashville Predators","Boston Bruins"]
[null,null,null,null,null,null,null,null,null,null,null,null,null,null,null,null,"2018-12-22","Anaheim Ducks","Buffalo Sabres"]
[null,null,null,null,null,null,null,null,null,null,null,null,null,null,null,null,"2018-12-22","Pittsburgh Penguins","Carolina Hurricanes"]
[null,null,null,null,null,null,null,null,null,null,null,null,null,null,null,null,"2018-12-22","St. Louis Blues","Calgary Flames"]
[null,null,null,null,null,null,null,null,null,null,null,null,null,null,null,null,"2018-12-22","Florida Panthers","Detroit Red Wings"]
[null,null,null,null,null,null,null,null,null,null,null,null,null,null,null,null,"2018-12-22","Tampa Bay Lightning","Edmonton Oilers"]
[null,null,null,null,null,null,null,null,null,null,null,null,null,null,null,null,"2018-12-22","Dallas Stars","Minnesota Wild"]
[null,null,null,null,null,null,null,null,null,null,null,null,null,null,null,null,"2018-12-22","Washington Capitals","Ottawa Senators"]
[null,null,null,null,null,null,null,null,null,null,null,null,null,null,null,null,"2018-12-22","Columbus Blue Jackets","Philadelphia Flyers"]
[null,null,null,null,null,null,null,null,null,null,null,null,null,null,null,null,"2018-12-22","Los Angeles Kings","San Jose Sharks"]
[null,null,null,null,null,null,null,null,null,null,null,null,null,null,null,null,"2018-12-22","New York Rangers","Toronto Maple Leafs"]
[null,null,null,null,null,null,null,null,null,null,null,null,null,null,null,null,"2018-12-22","Winnipeg Jets","Vancouver Canucks"]
[null,null,null,null,null,null,null,null,null,null,null,null,null,null,null,null,"2018-12-22","Montreal Canadiens","Vegas Golden Knights"]
[null,null,null,null,null,null,null,null,null,null,null,null,null,null,null,null,"2018-12-27","New Jersey Devils","Boston Bruins"]
[null,null,null,null,null,null,null,null,null,null,null,null,null,null,null,null,"2018-12-27","Minnesota Wild","Chicago Blackhawks"]
[null,null,null,null,null,null,null,null,null,null,null,null,null,null,null,null,"2018-12-27","Vancouver Canucks","Edmonton Oilers"]
[null,null,null,null,null,null,null,null,null,null,null,null,null,null,null,null,"2018-12-27","Arizona Coyotes","Los Angeles Kings"]
[null,null,null,null,null,null,null,null,null,null,null,null,null,null,null,null,"2018-12-27","Dallas Stars","Nashville Predators"]
[null,null,null,null,null,null,null,null,null,null,null,null,null,null,null,null,"2018-12-27","Columbus Blue Jackets","New York Rangers"]
[null,null,null,null,null,null,null,null,null,null,null,null,null,null,null,null,"2018-12-27","Detroit Red Wings","Pittsburgh Penguins"]
[null,null,null,null,null,null,null,null,null,null,null,null,null,null,null,null,"2018-12-27","Anaheim Ducks","San Jose Sharks"]
[null,null,null,null,null,null,null,null,null,null,null,null,null,null,null,null,"2018-12-27","Buffalo Sabres","St. Louis Blues"]
[null,null,null,null,null,null,null,null,null,null,null,null,null,null,null,null,"2018-12-27","Philadelphia Flyers","Tampa Bay Lightning"]
[null,null,null,null,null,null,null,null,null,null,null,null,null,null,null,null,"2018-12-27","Colorado Avalanche","Vegas Golden Knights"]
[null,null,null,null,null,null,null,null,null,null,null,null,null,null,null,null,"2018-12-27","Calgary Flames","Winnipeg Jets"]
[null,null,null,null,null,null,null,null,null,null,null,null,null,null,null,null,"2018-12-27","Carolina Hurricanes","Washington Capitals"]
[null,null,null,null,null,null,null,null,null,null,null,null,null,null,null,null,"2018-12-29","Arizona Coyotes","Anaheim Ducks"]
[null,null,null,null,null,null,null,null,null,null,null,null,null,null,null,null,"2018-12-29","Boston Bruins","Buffalo Sabres"]
[null,null,null,null,null,null,null,null,null,null,null,null,null,null,null,null,"2018-12-29","Vancouver Canucks","Calgary Flames"]
[null,null,null,null,null,null,null,null,null,null,null,null,null,null,null,null,"2018-12-29","Chicago Blackhawks","Colorado Avalanche"]
[null,null,null,null,null,null,null,null,null,null,null,null,null,null,null,null,"2018-12-29","Detroit Red Wings","Dallas Stars"]
[null,null,null,null,null,null,null,null,null,null,null,null,null,null,null,null,"2018-12-29","San Jose Sharks","Edmonton Oilers"]
[null,null,null,null,null,null,null,null,null,null,null,null,null,null,null,null,"2018-12-29","Philadelphia Flyers","Florida Panthers"]
[null,null,null,null,null,null,null,null,null,null,null,null,null,null,null,null,"2018-12-29","Vegas Golden Knights","Los Angeles Kings"]
[null,null,null,null,null,null,null,null,null,null,null,null,null,null,null,null,"2018-12-29","Carolina Hurricanes","New Jersey Devils"]
[null,null,null,null,null,null,null,null,null,null,null,null,null,null,null,null,"2018-12-29","New York Rangers","Nashville Predators"]
[null,null,null,null,null,null,null,null,null,null,null,null,null,null,null,null,"2018-12-29","Washington Capitals","Ottawa Senators"]
[null,null,null,null,null,null,null,null,null,null,null,null,null,null,null,null,"2018-12-29","Pittsburgh Penguins","St. Louis Blues"]
[null,null,null,null,null,null,null,null,null,null,null,null,null,null,null,null,"2018-12-29","Montreal Canadiens","Tampa Bay Lightning"]
[null,null,null,null,null,null,null,null,null,null,null,null,null,null,null,null,"2018-12-29","New York Islanders","Toronto Maple Leafs"]
[null,null,null,null,null,null,null,null,null,null,null,null,null,null,null,null,"2018-12-29","Minnesota Wild","Winnipeg Jets"]
[null,null,null,null,null,null,null,null,null,null,null,null,null,null,null,null,"2018-12-31","Tampa Bay Lightning","Anaheim Ducks"]
[null,null,null,null,null,null,null,null,null,null,null,null,null,null,null,null,"2018-12-31","New York Islanders","Buffalo Sabres"]
[null,null,null,null,null,null,null,null,null,null,null,null,null,null,null,null,"2018-12-31","Philadelphia Flyers","Carolina Hurricanes"]
[null,null,null,null,null,null,null,null,null,null,null,null,null,null,null,null,"2018-12-31","Ottawa Senators","Columbus Blue Jackets"]
[null,null,null,null,null,null,null,null,null,null,null,null,null,null,null,null,"2018-12-31","San Jose Sharks","Calgary Flames"]
[null,null,null,null,null,null,null,null,null,null,null,null,null,null,null,null,"2018-12-31","Los Angeles Kings","Colorado Avalanche"]
[null,null,null,null,null,null,null,null,null,null,null,null,null,null,null,null,"2018-12-31","Montreal Canadiens","Dallas Stars"]
[null,null,null,null,null,null,null,null,null,null,null,null,null,null,null,null,"2018-12-31","Florida Panthers","Detroit Red Wings"]
[null,null,null,null,null,null,null,null,null,null,null,null,null,null,null,null,"2018-12-31","Winnipeg Jets","Edmonton Oilers"]
[null,null,null,null,null,null,null,null,null,null,null,null,null,null,null,null,"2018-12-31","Pittsburgh Penguins","Minnesota Wild"]
[null,null,null,null,null,null,null,null,null,null,null,null,null,null,null,null,"2018-12-31","Vancouver Canucks","New Jersey Devils"]
[null,null,null,null,null,null,null,null,null,null,null,null,null,null,null,null,"2018-12-31","New York Rangers","St. Louis Blues"]
[null,null,null,null,null,null,null,null,null,null,null,null,null,null,null,null,"2018-12-31","Nashville Predators","Washington Capitals"]
[null,null,null,null,null,null,null,null,null,null,null,null,null,null,null,null,"2019-01-02","Edmonton Oilers","Arizona Coyotes"]
[null,null,null,null,null,null,null,null,null,null,null,null,null,null,null,null,"2019-01-02","San Jose Sharks","Colorado Avalanche"]
[null,null,null,null,null,null,null,null,null,null,null,null,null,null,null,null,"2019-01-02","New Jersey Devils","Dallas Stars"]
[null,null,null,null,null,null,null,null,null,null,null,null,null,null,null,null,"2019-01-02","Calgary Flames","Detroit Red Wings"]
[null,null,null,null,null,null,null,null,null,null,null,null,null,null,null,null,"2019-01-02","Pittsburgh Penguins","New York Rangers"]
[null,null,null,null,null,null,null,null,null,null,null,null,null,null,null,null,"2019-01-02","Vancouver Canucks","Ottawa Senators"]
[null,null,null,null,null,null,null,null,null,null,null,null,null,null,null,null,"2019-01-04","Vegas Golden Knights","Anaheim Ducks"]
[null,null,null,null,null,null,null,null,null,null,null,null,null,null,null,null,"2019-01-04","New Jersey Devils","Arizona Coyotes"]
[null,null,null,null,null,null,null,null,null,null,null,null,null,null,null,null,"2019-01-04","Columbus Blue Jackets","Carolina Hurricanes"]
[null,null,null,null,null,null,null,null,null,null,null,null,null,null,null,null,"2019-01-04","New York Rangers","Colorado Avalanche"]
[null,null,null,null,null,null,null,null,null,null,null,null,null,null,null,null,"2019-01-04","Washington Capitals","Dallas Stars"]
[null,null,null,null,null,null,null,null,null,null,null,null,null,null,null,null,"2019-01-04","Nashville Predators","Detroit Red Wings"]
[null,null,null,null,null,null,null,null,null,null,null,null,null,null,null,null,"2019-01-04","Winnipeg Jets","Pittsburgh Penguins"]
[null,null,null,null,null,null,null,null,null,null,null,null,null,null,null,null,"2019-01-06","Edmonton Oilers","Anaheim Ducks"]
[null,null,null,null,null,null,null,null,null,null,null,null,null,null,null,null,"2019-01-06","New York Rangers","Arizona Coyotes"]
[null,null,null,null,null,null,null,null,null,null,null,null,null,null,null,null,"2019-01-06","Washington Capitals","Detroit Red Wings"]
[null,null,null,null,null,null,null,null,null,null,null,null,null,null,null,null,"2019-01-06","Carolina Hurricanes","Ottawa Senators"]
[null,null,null,null,null,null,null,null,null,null,null,null,null,null,null,null,"2019-01-06","Chicago Blackhawks","Pittsburgh Penguins"]
[null,null,null,null,null,null,null,null,null,null,null,null,null,null,null,null,"2019-01-06","New Jersey Devils","Vegas Golden Knights"]
[null,null,null,null,null,null,null,null,null,null,null,null,null,null,null,null,"2019-01-06","Dallas Stars","Winnipeg Jets"]
[null,null,null,null,null,null,null,null,null,null,null,null,null,null,null,null,"2019-01-08","Minnesota Wild","Boston Bruins"]
[null,null,null,null,null,null,null,null,null,null,null,null,null,null,null,null,"2019-01-08","New Jersey Devils","Buffalo Sabres"]
[null,null,null,null,null,null,null,null,null,null,null,null,null,null,null,null,"2019-01-08","Montreal Canadiens","Detroit Red Wings"]
[null,null,null,null,null,null,null,null,null,null,null,null,null,null,null,null,"2019-01-08","Carolina Hurricanes","New York Islanders"]
[null,null,null,null,null,null,null,null,null,null,null,null,null,null,null,null,"2019-01-08","Florida Panthers","Pittsburgh Penguins"]
[null,null,null,null,null,null,null,null,null,null,null,null,null,null,null,null,"2019-01-08","Edmonton Oilers","San Jose Sharks"]
[null,null,null,null,null,null,null,null,null,null,null,null,null,null,null,null,"2019-01-08","Dallas Stars","St. Louis Blues"]
[null,null,null,null,null,null,null,null,null,null,null,null,null,null,null,null,"2019-01-08","Columbus Blue Jackets","Tampa Bay Lightning"]
[null,null,null,null,null,null,null,null,null,null,null,null,null,null,null,null,"2019-01-08","New York Rangers","Vegas Golden Knights"]
[null,null,null,null,null,null,null,null,null,null,null,null,null,null,null,null,"2019-01-08","Colorado Avalanche","Winnipeg Jets"]
[null,null,null,null,null,null,null,null,null,null,null,null,null,null,null,null,"2019-01-08","Philadelphia Flyers","Washington Capitals"]
[null,null,null,null,null,null,null,null,null,null,null,null,null,null,null,null,"2019-01-11","Pittsburgh Penguins","Anaheim Ducks"]
[null,null,null,null,null,null,null,null,null,null,null,null,null,null,null,null,"2019-01-11","Buffalo Sabres","Carolina Hurricanes"]
[null,null,null,null,null,null,null,null,null,null,null,null,null,null,null,null,"2019-01-11","Florida Panthers","Calgary Flames"]
[null,null,null,null,null,null,null,null,null,null,null,null,null,null,null,null,"2019-01-11","Detroit Red Wings","Winnipeg Jets"]
[null,null,null,null,null,null,null,null,null,null,null,null,null,null,null,null,"2019-01-12","Tampa Bay Lightning","Buffalo Sabres"]
[null,null,null,null,null,null,null,null,null,null,null,null,null,null,null,null,"2019-01-12","Vegas Golden Knights","Chicago Blackhawks"]
[null,null,null,null,null,null,null,null,null,null,null,null,null,null,null,null,"2019-01-12","St. Louis Blues","Dallas Stars"]
[null,null,null,null,null,null,null,null,null,null,null,null,null,null,null,null,"2019-01-12","Arizona Coyotes","Edmonton Oilers"]
[null,null,null,null,null,null,null,null,null,null,null,null,null,null,null,null,"2019-01-12","Pittsburgh Penguins","Los Angeles Kings"]
[null,null,null,null,null,null,null,null,null,null,null,null,null,null,null,null,"2019-01-12","Detroit Red Wings","Minnesota Wild"]
[null,null,null,null,null,null,null,null,null,null,null,null,null,null,null,null,"2019-01-12","Colorado Avalanche","Montreal Canadiens"]
[null,null,null,null,null,null,null,null,null,null,null,null,null,null,null,null,"2019-01-12","Philadelphia Flyers","New Jersey Devils"]
[null,null,null,null,null,null,null,null,null,null,null,null,null,null,null,null,"2019-01-12","New York Rangers","New York Islanders"]
[null,null,null,null,null,null,null,null,null,null,null,null,null,null,null,null,"2019-01-12","Ottawa Senators","San Jose Sharks"]
[null,null,null,null,null,null,null,null,null,null,null,null,null,null,null,null,"2019-01-12","Boston Bruins","Toronto Maple Leafs"]
[null,null,null,null,null,null,null,null,null,null,null,null,null,null,null,null,"2019-01-12","Columbus Blue Jackets","Washington Capitals"]
[null,null,null,null,null,null,null,null,null,null,null,null,null,null,null,null,"2019-01-15","New Jersey Devils","Columbus Blue Jackets"]
[null,null,null,null,null,null,null,null,null,null,null,null,null,null,null,null,"2019-01-15","Tampa Bay Lightning","Dallas Stars"]
[null,null,null,null,null,null,null,null,null,null,null,null,null,null,null,null,"2019-01-15","Anaheim Ducks","Detroit Red Wings"]
[null,null,null,null,null,null,null,null,null,null,null,null,null,null,null,null,"2019-01-15","Los Angeles Kings","Minnesota Wild"]
[null,null,null,null,null,null,null,null,null,null,null,null,null,null,null,null,"2019-01-15","Florida Panthers","Montreal Canadiens"]
[null,null,null,null,null,null,null,null,null,null,null,null,null,null,null,null,"2019-01-15","Washington Capitals","Nashville Predators"]
[null,null,null,null,null,null,null,null,null,null,null,null,null,null,null,null,"2019-01-15","St. Louis Blues","New York Islanders"]
[null,null,null,null,null,null,null,null,null,null,null,null,null,null,null,null,"2019-01-15","Carolina Hurricanes","New York Rangers"]
[null,null,null,null,null,null,null,null,null,null,null,null,null,null,null,null,"2019-01-15","Pittsburgh Penguins","San Jose Sharks"]
[null,null,null,null,null,null,null,null,null,null,null,null,null,null,null,null,"2019-01-15","Vegas Golden Knights","Winnipeg Jets"]
[null,null,null,null,null,null,null,null,null,null,null,null,null,null,null,null,"2019-01-18","Pittsburgh Penguins","Arizona Coyotes"]
[null,null,null,null,null,null,null,null,null,null,null,null,null,null,null,null,"2019-01-18","Ottawa Senators","Carolina Hurricanes"]
[null,null,null,null,null,null,null,null,null,null,null,null,null,null,null,null,"2019-01-18","Montreal Canadiens","Columbus Blue Jackets"]
[null,null,null,null,null,null,null,null,null,null,null,null,null,null,null,null,"2019-01-18","Detroit Red Wings","Calgary Flames"]
[null,null,null,null,null,null,null,null,null,null,null,null,null,null,null,null,"2019-01-18","Toronto Maple Leafs","Florida Panthers"]
[null,null,null,null,null,null,null,null,null,null,null,null,null,null,null,null,"2019-01-18","Buffalo Sabres","Vancouver Canucks"]
[null,null,null,null,null,null,null,null,null,null,null,null,null,null,null,null,"2019-01-18","New York Islanders","Washington Capitals"]
[null,null,null,null,null,null,null,null,null,null,null,null,null,null,null,null,"2019-01-19","New York Rangers","Boston Bruins"]
[null,null,null,null,null,null,null,null,null,null,null,null,null,null,null,null,"2019-01-19","Los Angeles Kings","Colorado Avalanche"]
[null,null,null,null,null,null,null,null,null,null,null,null,null,null,null,null,"2019-01-19","Winnipeg Jets","Dallas Stars"]
[null,null,null,null,null,null,null,null,null,null,null,null,null,null,null,null,"2019-01-19","Calgary Flames","Edmonton Oilers"]
[null,null,null,null,null,null,null,null,null,null,null,null,null,null,null,null,"2019-01-19","Columbus Blue Jackets","Minnesota Wild"]
[null,null,null,null,null,null,null,null,null,null,null,null,null,null,null,null,"2019-01-19","Philadelphia Flyers","Montreal Canadiens"]
[null,null,null,null,null,null,null,null,null,null,null,null,null,null,null,null,"2019-01-19","Anaheim Ducks","New Jersey Devils"]
[null,null,null,null,null,null,null,null,null,null,null,null,null,null,null,null,"2019-01-19","Florida Panthers","Nashville Predators"]
[null,null,null,null,null,null,null,null,null,null,null,null,null,null,null,null,"2019-01-19","Ottawa Senators","St. Louis Blues"]
[null,null,null,null,null,null,null,null,null,null,null,null,null,null,null,null,"2019-01-19","San Jose Sharks","Tampa Bay Lightning"]
[null,null,null,null,null,null,null,null,null,null,null,null,null,null,null,null,"2019-01-19","Pittsburgh Penguins","Vegas Golden Knights"]
[null,null,null,null,null,null,null,null,null,null,null,null,null,null,null,null,"2019-01-28","Winnipeg Jets","Philadelphia Flyers"]
[null,null,null,null,null,null,null,null,null,null,null,null,null,null,null,null,"2019-01-28","New Jersey Devils","Pittsburgh Penguins"]
[null,null,null,null,null,null,null,null,null,null,null,null,null,null,null,null,"2019-01-29","Winnipeg Jets","Boston Bruins"]
[null,null,null,null,null,null,null,null,null,null,null,null,null,null,null,null,"2019-01-29","Buffalo Sabres","Columbus Blue Jackets"]
[null,null,null,null,null,null,null,null,null,null,null,null,null,null,null,null,"2019-01-29","Philadelphia Flyers","New York Rangers"]
[null,null,null,null,null,null,null,null,null,null,null,null,null,null,null,null,"2019-01-30","Buffalo Sabres","Dallas Stars"]
[null,null,null,null,null,null,null,null,null,null,null,null,null,null,null,null,"2019-01-30","Tampa Bay Lightning","Pittsburgh Penguins"]
[null,null,null,null,null,null,null,null,null,null,null,null,null,null,null,null,"2019-02-01","Chicago Blackhawks","Buffalo Sabres"]
[null,null,null,null,null,null,null,null,null,null,null,null,null,null,null,null,"2019-02-01","Vegas Golden Knights","Carolina Hurricanes"]
[null,null,null,null,null,null,null,null,null,null,null,null,null,null,null,null,"2019-02-01","Minnesota Wild","Dallas Stars"]
[null,null,null,null,null,null,null,null,null,null,null,null,null,null,null,null,"2019-02-01","Toronto Maple Leafs","Detroit Red Wings"]
[null,null,null,null,null,null,null,null,null,null,null,null,null,null,null,null,"2019-02-01","Nashville Predators","Florida Panthers"]
[null,null,null,null,null,null,null,null,null,null,null,null,null,null,null,null,"2019-02-01","Tampa Bay Lightning","New York Islanders"]
[null,null,null,null,null,null,null,null,null,null,null,null,null,null,null,null,"2019-02-01","Ottawa Senators","Pittsburgh Penguins"]
[null,null,null,null,null,null,null,null,null,null,null,null,null,null,null,null,"2019-02-01","Calgary Flames","Washington Capitals"]
[null,null,null,null,null,null,null,null,null,null,null,null,null,null,null,null,"2019-02-02","St. Louis Blues","Columbus Blue Jackets"]
[null,null,null,null,null,null,null,null,null,null,null,null,null,null,null,null,"2019-02-02","Vancouver Canucks","Colorado Avalanche"]
[null,null,null,null,null,null,null,null,null,null,null,null,null,null,null,null,"2019-02-02","Vegas Golden Knights","Florida Panthers"]
[null,null,null,null,null,null,null,null,null,null,null,null,null,null,null,null,"2019-02-02","Chicago Blackhawks","Minnesota Wild"]
[null,null,null,null,null,null,null,null,null,null,null,null,null,null,null,null,"2019-02-02","New Jersey Devils","Montreal Canadiens"]
[null,null,null,null,null,null,null,null,null,null,null,null,null,null,null,null,"2019-02-02","Dallas Stars","Nashville Predators"]
[null,null,null,null,null,null,null,null,null,null,null,null,null,null,null,null,"2019-02-02","Los Angeles Kings","New York Islanders"]
[null,null,null,null,null,null,null,null,null,null,null,null,null,null,null,null,"2019-02-02","Tampa Bay Lightning","New York Rangers"]
[null,null,null,null,null,null,null,null,null,null,null,null,null,null,null,null,"2019-02-02","Detroit Red Wings","Ottawa Senators"]
[null,null,null,null,null,null,null,null,null,null,null,null,null,null,null,null,"2019-02-02","Edmonton Oilers","Philadelphia Flyers"]
[null,null,null,null,null,null,null,null,null,null,null,null,null,null,null,null,"2019-02-02","Arizona Coyotes","San Jose Sharks"]
[null,null,null,null,null,null,null,null,null,null,null,null,null,null,null,null,"2019-02-02","Pittsburgh Penguins","Toronto Maple Leafs"]
[null,null,null,null,null,null,null,null,null,null,null,null,null,null,null,null,"2019-02-02","Anaheim Ducks","Winnipeg Jets"]
[null,null,null,null,null,null,null,null,null,null,null,null,null,null,null,null,"2019-02-05","New York Islanders","Boston Bruins"]
[null,null,null,null,null,null,null,null,null,null,null,null,null,null,null,null,"2019-02-05","Minnesota Wild","Buffalo Sabres"]
[null,null,null,null,null,null,null,null,null,null,null,null,null,null,null,null,"2019-02-05","Columbus Blue Jackets","Colorado Avalanche"]
[null,null,null,null,null,null,null,null,null,null,null,null,null,null,null,null,"2019-02-05","Chicago Blackhawks","Edmonton Oilers"]
[null,null,null,null,null,null,null,null,null,null,null,null,null,null,null,null,"2019-02-05","St. Louis Blues","Florida Panthers"]
[null,null,null,null,null,null,null,null,null,null,null,null,null,null,null,null,"2019-02-05","Anaheim Ducks","Montreal Canadiens"]
[null,null,null,null,null,null,null,null,null,null,null,null,null,null,null,null,"2019-02-05","Los Angeles Kings","New Jersey Devils"]
[null,null,null,null,null,null,null,null,null,null,null,null,null,null,null,null,"2019-02-05","Arizona Coyotes","Nashville Predators"]
[null,null,null,null,null,null,null,null,null,null,null,null,null,null,null,null,"2019-02-05","Carolina Hurricanes","Pittsburgh Penguins"]
[null,null,null,null,null,null,null,null,null,null,null,null,null,null,null,null,"2019-02-05","Vegas Golden Knights","Tampa Bay Lightning"]
[null,null,null,null,null,null,null,null,null,null,null,null,null,null,null,null,"2019-02-05","San Jose Sharks","Winnipeg Jets"]
[null,null,null,null,null,null,null,null,null,null,null,null,null,null,null,null,"2019-02-05","Vancouver Canucks","Washington Capitals"]
[null,null,null,null,null,null,null,null,null,null,null,null,null,null,null,null,"2019-02-07","Columbus Blue Jackets","Arizona Coyotes"]
[null,null,null,null,null,null,null,null,null,null,null,null,null,null,null,null,"2019-02-07","Carolina Hurricanes","Buffalo Sabres"]
[null,null,null,null,null,null,null,null,null,null,null,null,null,null,null,null,"2019-02-07","San Jose Sharks","Calgary Flames"]
[null,null,null,null,null,null,null,null,null,null,null,null,null,null,null,null,"2019-02-07","Vancouver Canucks","Chicago Blackhawks"]
[null,null,null,null,null,null,null,null,null,null,null,null,null,null,null,null,"2019-02-07","Vegas Golden Knights","Detroit Red Wings"]
[null,null,null,null,null,null,null,null,null,null,null,null,null,null,null,null,"2019-02-07","Pittsburgh Penguins","Florida Panthers"]
[null,null,null,null,null,null,null,null,null,null,null,null,null,null,null,null,"2019-02-07","Edmonton Oilers","Minnesota Wild"]
[null,null,null,null,null,null,null,null,null,null,null,null,null,null,null,null,"2019-02-07","Winnipeg Jets","Montreal Canadiens"]
[null,null,null,null,null,null,null,null,null,null,null,null,null,null,null,null,"2019-02-07","New York Islanders","New Jersey Devils"]
[null,null,null,null,null,null,null,null,null,null,null,null,null,null,null,null,"2019-02-07","Dallas Stars","Nashville Predators"]
[null,null,null,null,null,null,null,null,null,null,null,null,null,null,null,null,"2019-02-07","Anaheim Ducks","Ottawa Senators"]
[null,null,null,null,null,null,null,null,null,null,null,null,null,null,null,null,"2019-02-07","Los Angeles Kings","Philadelphia Flyers"]
[null,null,null,null,null,null,null,null,null,null,null,null,null,null,null,null,"2019-02-07","St. Louis Blues","Tampa Bay Lightning"]
[null,null,null,null,null,null,null,null,null,null,null,null,null,null,null,null,"2019-02-07","Colorado Avalanche","Washington Capitals"]
[null,null,null,null,null,null,null,null,null,null,null,null,null,null,null,null,"2019-02-09","Dallas Stars","Arizona Coyotes"]
[null,null,null,null,null,null,null,null,null,null,null,null,null,null,null,null,"2019-02-09","Los Angeles Kings","Boston Bruins"]
[null,null,null,null,null,null,null,null,null,null,null,null,null,null,null,null,"2019-02-09","Detroit Red Wings","Buffalo Sabres"]
[null,null,null,null,null,null,null,null,null,null,null,null,null,null,null,null,"2019-02-09","San Jose Sharks","Edmonton Oilers"]
[null,null,null,null,null,null,null,null,null,null,null,null,null,null,null,null,"2019-02-09","Toronto Maple Leafs","Montreal Canadiens"]
[null,null,null,null,null,null,null,null,null,null,null,null,null,null,null,null,"2019-02-09","Minnesota Wild","New Jersey Devils"]
[null,null,null,null,null,null,null,null,null,null,null,null,null,null,null,null,"2019-02-09","Colorado Avalanche","New York Islanders"]
[null,null,null,null,null,null,null,null,null,null,null,null,null,null,null,null,"2019-02-09","Winnipeg Jets","Ottawa Senators"]
[null,null,null,null,null,null,null,null,null,null,null,null,null,null,null,null,"2019-02-09","Anaheim Ducks","Philadelphia Flyers"]
[null,null,null,null,null,null,null,null,null,null,null,null,null,null,null,null,"2019-02-09","Nashville Predators","St. Louis Blues"]
[null,null,null,null,null,null,null,null,null,null,null,null,null,null,null,null,"2019-02-09","Pittsburgh Penguins","Tampa Bay Lightning"]
[null,null,null,null,null,null,null,null,null,null,null,null,null,null,null,null,"2019-02-09","Calgary Flames","Vancouver Canucks"]
[null,null,null,null,null,null,null,null,null,null,null,null,null,null,null,null,"2019-02-09","Columbus Blue Jackets","Vegas Golden Knights"]
[null,null,null,null,null,null,null,null,null,null,null,null,null,null,null,null,"2019-02-09","Florida Panthers","Washington Capitals"]
[null,null,null,null,null,null,null,null,null,null,null,null,null,null,null,null,"2019-02-11","Pittsburgh Penguins","Philadelphia Flyers"]
[null,null,null,null,null,null,null,null,null,null,null,null,null,null,null,null,"2019-02-11","San Jose Sharks","Vancouver Canucks"]
[null,null,null,null,null,null,null,null,null,null,null,null,null,null,null,null,"2019-02-11","Los Angeles Kings","Washington Capitals"]
[null,null,null,null,null,null,null,null,null,null,null,null,null,null,null,null,"2019-02-13","Vancouver Canucks","Anaheim Ducks"]
[null,null,null,null,null,null,null,null,null,null,null,null,null,null,null,null,"2019-02-13","Edmonton Oilers","Pittsburgh Penguins"]
[null,null,null,null,null,null,null,null,null,null,null,null,null,null,null,null,"2019-02-16","Toronto Maple Leafs","Arizona Coyotes"]
[null,null,null,null,null,null,null,null,null,null,null,null,null,null,null,null,"2019-02-16","Dallas Stars","Carolina Hurricanes"]
[null,null,null,null,null,null,null,null,null,null,null,null,null,null,null,null,"2019-02-16","Columbus Blue Jackets","Chicago Blackhawks"]
[null,null,null,null,null,null,null,null,null,null,null,null,null,null,null,null,"2019-02-16","St. Louis Blues","Colorado Avalanche"]
[null,null,null,null,null,null,null,null,null,null,null,null,null,null,null,null,"2019-02-16","Boston Bruins","Los Angeles Kings"]
[null,null,null,null,null,null,null,null,null,null,null,null,null,null,null,null,"2019-02-16","Edmonton Oilers","New York Islanders"]
[null,null,null,null,null,null,null,null,null,null,null,null,null,null,null,null,"2019-02-16","Detroit Red Wings","Philadelphia Flyers"]
[null,null,null,null,null,null,null,null,null,null,null,null,null,null,null,null,"2019-02-16","Calgary Flames","Pittsburgh Penguins"]
[null,null,null,null,null,null,null,null,null,null,null,null,null,null,null,null,"2019-02-16","Vancouver Canucks","San Jose Sharks"]
[null,null,null,null,null,null,null,null,null,null,null,null,null,null,null,null,"2019-02-16","Montreal Canadiens","Tampa Bay Lightning"]
[null,null,null,null,null,null,null,null,null,null,null,null,null,null,null,null,"2019-02-16","Nashville Predators","Vegas Golden Knights"]
[null,null,null,null,null,null,null,null,null,null,null,null,null,null,null,null,"2019-02-16","Ottawa Senators","Winnipeg Jets"]
[null,null,null,null,null,null,null,null,null,null,null,null,null,null,null,null,"2019-02-17","Washington Capitals","Anaheim Ducks"]
[null,null,null,null,null,null,null,null,null,null,null,null,null,null,null,null,"2019-02-17","Philadelphia Flyers","Detroit Red Wings"]
[null,null,null,null,null,null,null,null,null,null,null,null,null,null,null,null,"2019-02-17","Montreal Canadiens","Florida Panthers"]
[null,null,null,null,null,null,null,null,null,null,null,null,null,null,null,null,"2019-02-17","St. Louis Blues","Minnesota Wild"]
[null,null,null,null,null,null,null,null,null,null,null,null,null,null,null,null,"2019-02-17","Buffalo Sabres","New Jersey Devils"]
[null,null,null,null,null,null,null,null,null,null,null,null,null,null,null,null,"2019-02-17","New York Rangers","Pittsburgh Penguins"]
[null,null,null,null,null,null,null,null,null,null,null,null,null,null,null,null,"2019-02-19","New York Rangers","Carolina Hurricanes"]
[null,null,null,null,null,null,null,null,null,null,null,null,null,null,null,null,"2019-02-19","Nashville Predators","Dallas Stars"]
[null,null,null,null,null,null,null,null,null,null,null,null,null,null,null,null,"2019-02-19","Arizona Coyotes","Edmonton Oilers"]
[null,null,null,null,null,null,null,null,null,null,null,null,null,null,null,null,"2019-02-19","Buffalo Sabres","Florida Panthers"]
[null,null,null,null,null,null,null,null,null,null,null,null,null,null,null,null,"2019-02-19","Anaheim Ducks","Minnesota Wild"]
[null,null,null,null,null,null,null,null,null,null,null,null,null,null,null,null,"2019-02-19","Columbus Blue Jackets","Montreal Canadiens"]
[null,null,null,null,null,null,null,null,null,null,null,null,null,null,null,null,"2019-02-19","Pittsburgh Penguins","New Jersey Devils"]
[null,null,null,null,null,null,null,null,null,null,null,null,null,null,null,null,"2019-02-19","Tampa Bay Lightning","Philadelphia Flyers"]
[null,null,null,null,null,null,null,null,null,null,null,null,null,null,null,null,"2019-02-19","Toronto Maple Leafs","St. Louis Blues"]
[null,null,null,null,null,null,null,null,null,null,null,null,null,null,null,null,"2019-02-21","St. Louis Blues","Dallas Stars"]
[null,null,null,null,null,null,null,null,null,null,null,null,null,null,null,null,"2019-02-21","New York Islanders","Edmonton Oilers"]
[null,null,null,null,null,null,null,null,null,null,null,null,null,null,null,null,"2019-02-21","Carolina Hurricanes","Florida Panthers"]
[null,null,null,null,null,null,null,null,null,null,null,null,null,null,null,null,"2019-02-21","Philadelphia Flyers","Montreal Canadiens"]
[null,null,null,null,null,null,null,null,null,null,null,null,null,null,null,null,"2019-02-21","Ottawa Senators","New Jersey Devils"]
[null,null,null,null,null,null,null,null,null,null,null,null,null,null,null,null,"2019-02-21","Los Angeles Kings","Nashville Predators"]
[null,null,null,null,null,null,null,null,null,null,null,null,null,null,null,null,"2019-02-21","Minnesota Wild","New York Rangers"]
[null,null,null,null,null,null,null,null,null,null,null,null,null,null,null,null,"2019-02-21","San Jose Sharks","Pittsburgh Penguins"]
[null,null,null,null,null,null,null,null,null,null,null,null,null,null,null,null,"2019-02-21","Buffalo Sabres","Tampa Bay Lightning"]
[null,null,null,null,null,null,null,null,null,null,null,null,null,null,null,null,"2019-02-21","Washington Capitals","Toronto Maple Leafs"]
[null,null,null,null,null,null,null,null,null,null,null,null,null,null,null,null,"2019-02-21","Arizona Coyotes","Vancouver Canucks"]
[null,null,null,null,null,null,null,null,null,null,null,null,null,null,null,null,"2019-02-23","Washington Capitals","Buffalo Sabres"]
[null,null,null,null,null,null,null,null,null,null,null,null,null,null,null,null,"2019-02-23","San Jose Sharks","Columbus Blue Jackets"]
[null,null,null,null,null,null,null,null,null,null,null,null,null,null,null,null,"2019-02-23","Carolina Hurricanes","Dallas Stars"]
[null,null,null,null,null,null,null,null,null,null,null,null,null,null,null,null,"2019-02-23","Anaheim Ducks","Edmonton Oilers"]
[null,null,null,null,null,null,null,null,null,null,null,null,null,null,null,null,"2019-02-23","Los Angeles Kings","Florida Panthers"]
[null,null,null,null,null,null,null,null,null,null,null,null,null,null,null,null,"2019-02-23","Colorado Avalanche","Nashville Predators"]
[null,null,null,null,null,null,null,null,null,null,null,null,null,null,null,null,"2019-02-23","New Jersey Devils","New York Rangers"]
[null,null,null,null,null,null,null,null,null,null,null,null,null,null,null,null,"2019-02-23","Pittsburgh Penguins","Philadelphia Flyers"]
[null,null,null,null,null,null,null,null,null,null,null,null,null,null,null,null,"2019-02-23","Boston Bruins","St. Louis Blues"]
[null,null,null,null,null,null,null,null,null,null,null,null,null,null,null,null,"2019-02-23","Montreal Canadiens","Toronto Maple Leafs"]
[null,null,null,null,null,null,null,null,null,null,null,null,null,null,null,null,"2019-02-23","New York Islanders","Vancouver Canucks"]
[null,null,null,null,null,null,null,null,null,null,null,null,null,null,null,null,"2019-02-26","Florida Panthers","Arizona Coyotes"]
[null,null,null,null,null,null,null,null,null,null,null,null,null,null,null,null,"2019-02-26","San Jose Sharks","Boston Bruins"]
[null,null,null,null,null,null,null,null,null,null,null,null,null,null,null,null,"2019-02-26","Los Angeles Kings","Carolina Hurricanes"]
[null,null,null,null,null,null,null,null,null,null,null,null,null,null,null,null,"2019-02-26","Pittsburgh Penguins","Columbus Blue Jackets"]
[null,null,null,null,null,null,null,null,null,null,null,null,null,null,null,null,"2019-02-26","Montreal Canadiens","Detroit Red Wings"]
[null,null,null,null,null,null,null,null,null,null,null,null,null,null,null,null,"2019-02-26","Calgary Flames","New York Islanders"]
[null,null,null,null,null,null,null,null,null,null,null,null,null,null,null,null,"2019-02-26","Buffalo Sabres","Philadelphia Flyers"]
[null,null,null,null,null,null,null,null,null,null,null,null,null,null,null,null,"2019-02-26","Nashville Predators","St. Louis Blues"]
[null,null,null,null,null,null,null,null,null,null,null,null,null,null,null,null,"2019-02-26","Dallas Stars","Vegas Golden Knights"]
[null,null,null,null,null,null,null,null,null,null,null,null,null,null,null,null,"2019-02-26","Minnesota Wild","Winnipeg Jets"]
[null,null,null,null,null,null,null,null,null,null,null,null,null,null,null,null,"2019-02-26","Ottawa Senators","Washington Capitals"]
[null,null,null,null,null,null,null,null,null,null,null,null,null,null,null,null,"2019-03-01","Vegas Golden Knights","Anaheim Ducks"]
[null,null,null,null,null,null,null,null,null,null,null,null,null,null,null,null,"2019-03-01","Pittsburgh Penguins","Buffalo Sabres"]
[null,null,null,null,null,null,null,null,null,null,null,null,null,null,null,null,"2019-03-01","St. Louis Blues","Carolina Hurricanes"]
[null,null,null,null,null,null,null,null,null,null,null,null,null,null,null,null,"2019-03-01","Philadelphia Flyers","New Jersey Devils"]
[null,null,null,null,null,null,null,null,null,null,null,null,null,null,null,null,"2019-03-01","Washington Capitals","New York Islanders"]
[null,null,null,null,null,null,null,null,null,null,null,null,null,null,null,null,"2019-03-01","Montreal Canadiens","New York Rangers"]
[null,null,null,null,null,null,null,null,null,null,null,null,null,null,null,null,"2019-03-01","Colorado Avalanche","San Jose Sharks"]
[null,null,null,null,null,null,null,null,null,null,null,null,null,null,null,null,"2019-03-01","Nashville Predators","Winnipeg Jets"]
[null,null,null,null,null,null,null,null,null,null,null,null,null,null,null,null,"2019-03-02","Detroit Red Wings","Arizona Coyotes"]
[null,null,null,null,null,null,null,null,null,null,null,null,null,null,null,null,"2019-03-02","New Jersey Devils","Boston Bruins"]
[null,null,null,null,null,null,null,null,null,null,null,null,null,null,null,null,"2019-03-02","Edmonton Oilers","Columbus Blue Jackets"]
[null,null,null,null,null,null,null,null,null,null,null,null,null,null,null,null,"2019-03-02","Minnesota Wild","Calgary Flames"]
[null,null,null,null,null,null,null,null,null,null,null,null,null,null,null,null,"2019-03-02","Carolina Hurricanes","Florida Panthers"]
[null,null,null,null,null,null,null,null,null,null,null,null,null,null,null,null,"2019-03-02","Chicago Blackhawks","Los Angeles Kings"]
[null,null,null,null,null,null,null,null,null,null,null,null,null,null,null,null,"2019-03-02","Pittsburgh Penguins","Montreal Canadiens"]
[null,null,null,null,null,null,null,null,null,null,null,null,null,null,null,null,"2019-03-02","Dallas Stars","St. Louis Blues"]
[null,null,null,null,null,null,null,null,null,null,null,null,null,null,null,null,"2019-03-02","Ottawa Senators","Tampa Bay Lightning"]
[null,null,null,null,null,null,null,null,null,null,null,null,null,null,null,null,"2019-03-02","Buffalo Sabres","Toronto Maple Leafs"]
[null,null,null,null,null,null,null,null,null,null,null,null,null,null,null,null,"2019-03-03","Colorado Avalanche","Anaheim Ducks"]
[null,null,null,null,null,null,null,null,null,null,null,null,null,null,null,null,"2019-03-05","Anaheim Ducks","Arizona Coyotes"]
[null,null,null,null,null,null,null,null,null,null,null,null,null,null,null,null,"2019-03-05","Carolina Hurricanes","Boston Bruins"]
[null,null,null,null,null,null,null,null,null,null,null,null,null,null,null,null,"2019-03-05","Detroit Red Wings","Colorado Avalanche"]
[null,null,null,null,null,null,null,null,null,null,null,null,null,null,null,null,"2019-03-05","New York Rangers","Dallas Stars"]
[null,null,null,null,null,null,null,null,null,null,null,null,null,null,null,null,"2019-03-05","Montreal Canadiens","Los Angeles Kings"]
[null,null,null,null,null,null,null,null,null,null,null,null,null,null,null,null,"2019-03-05","Columbus Blue Jackets","New Jersey Devils"]
[null,null,null,null,null,null,null,null,null,null,null,null,null,null,null,null,"2019-03-05","Minnesota Wild","Nashville Predators"]
[null,null,null,null,null,null,null,null,null,null,null,null,null,null,null,null,"2019-03-05","Ottawa Senators","New York Islanders"]
[null,null,null,null,null,null,null,null,null,null,null,null,null,null,null,null,"2019-03-05","Florida Panthers","Pittsburgh Penguins"]
[null,null,null,null,null,null,null,null,null,null,null,null,null,null,null,null,"2019-03-05","Winnipeg Jets","Tampa Bay Lightning"]
[null,null,null,null,null,null,null,null,null,null,null,null,null,null,null,null,"2019-03-07","Calgary Flames","Arizona Coyotes"]
[null,null,null,null,null,null,null,null,null,null,null,null,null,null,null,null,"2019-03-07","Florida Panthers","Boston Bruins"]
[null,null,null,null,null,null,null,null,null,null,null,null,null,null,null,null,"2019-03-07","Buffalo Sabres","Chicago Blackhawks"]
[null,null,null,null,null,null,null,null,null,null,null,null,null,null,null,null,"2019-03-07","Colorado Avalanche","Dallas Stars"]
[null,null,null,null,null,null,null,null,null,null,null,null,null,null,null,null,"2019-03-07","New York Rangers","Detroit Red Wings"]
[null,null,null,null,null,null,null,null,null,null,null,null,null,null,null,null,"2019-03-07","Vancouver Canucks","Edmonton Oilers"]
[null,null,null,null,null,null,null,null,null,null,null,null,null,null,null,null,"2019-03-07","St. Louis Blues","Los Angeles Kings"]
[null,null,null,null,null,null,null,null,null,null,null,null,null,null,null,null,"2019-03-07","New York Islanders","Ottawa Senators"]
[null,null,null,null,null,null,null,null,null,null,null,null,null,null,null,null,"2019-03-07","Columbus Blue Jackets","Pittsburgh Penguins"]
[null,null,null,null,null,null,null,null,null,null,null,null,null,null,null,null,"2019-03-07","Montreal Canadiens","San Jose Sharks"]
[null,null,null,null,null,null,null,null,null,null,null,null,null,null,null,null,"2019-03-07","Minnesota Wild","Tampa Bay Lightning"]
[null,null,null,null,null,null,null,null,null,null,null,null,null,null,null,null,"2019-03-09","Los Angeles Kings","Arizona Coyotes"]
[null,null,null,null,null,null,null,null,null,null,null,null,null,null,null,null,"2019-03-09","Ottawa Senators","Boston Bruins"]
[null,null,null,null,null,null,null,null,null,null,null,null,null,null,null,null,"2019-03-09","Pittsburgh Penguins","Columbus Blue Jackets"]
[null,null,null,null,null,null,null,null,null,null,null,null,null,null,null,null,"2019-03-09","Buffalo Sabres","Colorado Avalanche"]
[null,null,null,null,null,null,null,null,null,null,null,null,null,null,null,null,"2019-03-09","Chicago Blackhawks","Dallas Stars"]
[null,null,null,null,null,null,null,null,null,null,null,null,null,null,null,null,"2019-03-09","Toronto Maple Leafs","Edmonton Oilers"]
[null,null,null,null,null,null,null,null,null,null,null,null,null,null,null,null,"2019-03-09","Carolina Hurricanes","Nashville Predators"]
[null,null,null,null,null,null,null,null,null,null,null,null,null,null,null,null,"2019-03-09","Philadelphia Flyers","New York Islanders"]
[null,null,null,null,null,null,null,null,null,null,null,null,null,null,null,null,"2019-03-09","New Jersey Devils","New York Rangers"]
[null,null,null,null,null,null,null,null,null,null,null,null,null,null,null,null,"2019-03-09","St. Louis Blues","San Jose Sharks"]
[null,null,null,null,null,null,null,null,null,null,null,null,null,null,null,null,"2019-03-09","Detroit Red Wings","Tampa Bay Lightning"]
[null,null,null,null,null,null,null,null,null,null,null,null,null,null,null,null,"2019-03-09","Vegas Golden Knights","Vancouver Canucks"]
[null,null,null,null,null,null,null,null,null,null,null,null,null,null,null,null,"2019-03-10","Los Angeles Kings","Anaheim Ducks"]
[null,null,null,null,null,null,null,null,null,null,null,null,null,null,null,null,"2019-03-10","Vegas Golden Knights","Calgary Flames"]
[null,null,null,null,null,null,null,null,null,null,null,null,null,null,null,null,"2019-03-10","Detroit Red Wings","Florida Panthers"]
[null,null,null,null,null,null,null,null,null,null,null,null,null,null,null,null,"2019-03-10","Boston Bruins","Pittsburgh Penguins"]
[null,null,null,null,null,null,null,null,null,null,null,null,null,null,null,null,"2019-03-10","Winnipeg Jets","Washington Capitals"]
[null,null,null,null,null,null,null,null,null,null,null,null,null,null,null,null,"2019-03-12","Nashville Predators","Anaheim Ducks"]
[null,null,null,null,null,null,null,null,null,null,null,null,null,null,null,null,"2019-03-12","Dallas Stars","Buffalo Sabres"]
[null,null,null,null,null,null,null,null,null,null,null,null,null,null,null,null,"2019-03-12","Boston Bruins","Columbus Blue Jackets"]
[null,null,null,null,null,null,null,null,null,null,null,null,null,null,null,null,"2019-03-12","New Jersey Devils","Calgary Flames"]
[null,null,null,null,null,null,null,null,null,null,null,null,null,null,null,null,"2019-03-12","Detroit Red Wings","Montreal Canadiens"]
[null,null,null,null,null,null,null,null,null,null,null,null,null,null,null,null,"2019-03-12","Washington Capitals","Pittsburgh Penguins"]
[null,null,null,null,null,null,null,null,null,null,null,null,null,null,null,null,"2019-03-12","Arizona Coyotes","St. Louis Blues"]
[null,null,null,null,null,null,null,null,null,null,null,null,null,null,null,null,"2019-03-12","San Jose Sharks","Winnipeg Jets"]
[null,null,null,null,null,null,null,null,null,null,null,null,null,null,null,null,"2019-03-14","Anaheim Ducks","Arizona Coyotes"]
[null,null,null,null,null,null,null,null,null,null,null,null,null,null,null,null,"2019-03-14","Pittsburgh Penguins","Buffalo Sabres"]
[null,null,null,null,null,null,null,null,null,null,null,null,null,null,null,null,"2019-03-14","Tampa Bay Lightning","Detroit Red Wings"]
[null,null,null,null,null,null,null,null,null,null,null,null,null,null,null,null,"2019-03-14","Nashville Predators","Los Angeles Kings"]
[null,null,null,null,null,null,null,null,null,null,null,null,null,null,null,null,"2019-03-14","Dallas Stars","Minnesota Wild"]
[null,null,null,null,null,null,null,null,null,null,null,null,null,null,null,null,"2019-03-14","Montreal Canadiens","New York Islanders"]
[null,null,null,null,null,null,null,null,null,null,null,null,null,null,null,null,"2019-03-14","St. Louis Blues","Ottawa Senators"]
[null,null,null,null,null,null,null,null,null,null,null,null,null,null,null,null,"2019-03-14","Washington Capitals","Philadelphia Flyers"]
[null,null,null,null,null,null,null,null,null,null,null,null,null,null,null,null,"2019-03-14","Florida Panthers","San Jose Sharks"]
[null,null,null,null,null,null,null,null,null,null,null,null,null,null,null,null,"2019-03-14","Boston Bruins","Winnipeg Jets"]
[null,null,null,null,null,null,null,null,null,null,null,null,null,null,null,null,"2019-03-16","Edmonton Oilers","Arizona Coyotes"]
[null,null,null,null,null,null,null,null,null,null,null,null,null,null,null,null,"2019-03-16","Columbus Blue Jackets","Boston Bruins"]
[null,null,null,null,null,null,null,null,null,null,null,null,null,null,null,null,"2019-03-16","Buffalo Sabres","Carolina Hurricanes"]
[null,null,null,null,null,null,null,null,null,null,null,null,null,null,null,null,"2019-03-16","New York Islanders","Detroit Red Wings"]
[null,null,null,null,null,null,null,null,null,null,null,null,null,null,null,null,"2019-03-16","Florida Panthers","Los Angeles Kings"]
[null,null,null,null,null,null,null,null,null,null,null,null,null,null,null,null,"2019-03-16","New York Rangers","Minnesota Wild"]
[null,null,null,null,null,null,null,null,null,null,null,null,null,null,null,null,"2019-03-16","Chicago Blackhawks","Montreal Canadiens"]
[null,null,null,null,null,null,null,null,null,null,null,null,null,null,null,null,"2019-03-16","Toronto Maple Leafs","Ottawa Senators"]
[null,null,null,null,null,null,null,null,null,null,null,null,null,null,null,null,"2019-03-16","St. Louis Blues","Pittsburgh Penguins"]
[null,null,null,null,null,null,null,null,null,null,null,null,null,null,null,null,"2019-03-16","Nashville Predators","San Jose Sharks"]
[null,null,null,null,null,null,null,null,null,null,null,null,null,null,null,null,"2019-03-16","Washington Capitals","Tampa Bay Lightning"]
[null,null,null,null,null,null,null,null,null,null,null,null,null,null,null,null,"2019-03-16","Calgary Flames","Winnipeg Jets"]
[null,null,null,null,null,null,null,null,null,null,null,null,null,null,null,null,"2019-03-17","Florida Panthers","Anaheim Ducks"]
[null,null,null,null,null,null,null,null,null,null,null,null,null,null,null,null,"2019-03-17","St. Louis Blues","Buffalo Sabres"]
[null,null,null,null,null,null,null,null,null,null,null,null,null,null,null,null,"2019-03-17","New Jersey Devils","Colorado Avalanche"]
[null,null,null,null,null,null,null,null,null,null,null,null,null,null,null,null,"2019-03-17","Vancouver Canucks","Dallas Stars"]
[null,null,null,null,null,null,null,null,null,null,null,null,null,null,null,null,"2019-03-17","New York Islanders","Minnesota Wild"]
[null,null,null,null,null,null,null,null,null,null,null,null,null,null,null,null,"2019-03-17","Philadelphia Flyers","Pittsburgh Penguins"]
[null,null,null,null,null,null,null,null,null,null,null,null,null,null,null,null,"2019-03-17","Edmonton Oilers","Vegas Golden Knights"]
[null,null,null,null,null,null,null,null,null,null,null,null,null,null,null,null,"2019-03-19","Pittsburgh Penguins","Carolina Hurricanes"]
[null,null,null,null,null,null,null,null,null,null,null,null,null,null,null,null,"2019-03-19","Columbus Blue Jackets","Calgary Flames"]
[null,null,null,null,null,null,null,null,null,null,null,null,null,null,null,null,"2019-03-19","Florida Panthers","Dallas Stars"]
[null,null,null,null,null,null,null,null,null,null,null,null,null,null,null,null,"2019-03-19","Colorado Avalanche","Minnesota Wild"]
[null,null,null,null,null,null,null,null,null,null,null,null,null,null,null,null,"2019-03-19","Washington Capitals","New Jersey Devils"]
[null,null,null,null,null,null,null,null,null,null,null,null,null,null,null,null,"2019-03-19","Toronto Maple Leafs","Nashville Predators"]
[null,null,null,null,null,null,null,null,null,null,null,null,null,null,null,null,"2019-03-19","Boston Bruins","New York Islanders"]
[null,null,null,null,null,null,null,null,null,null,null,null,null,null,null,null,"2019-03-19","Detroit Red Wings","New York Rangers"]
[null,null,null,null,null,null,null,null,null,null,null,null,null,null,null,null,"2019-03-19","Montreal Canadiens","Philadelphia Flyers"]
[null,null,null,null,null,null,null,null,null,null,null,null,null,null,null,null,"2019-03-19","Edmonton Oilers","St. Louis Blues"]
[null,null,null,null,null,null,null,null,null,null,null,null,null,null,null,null,"2019-03-21","Tampa Bay Lightning","Carolina Hurricanes"]
[null,null,null,null,null,null,null,null,null,null,null,null,null,null,null,null,"2019-03-21","Ottawa Senators","Calgary Flames"]
[null,null,null,null,null,null,null,null,null,null,null,null,null,null,null,null,"2019-03-21","Philadelphia Flyers","Chicago Blackhawks"]
[null,null,null,null,null,null,null,null,null,null,null,null,null,null,null,null,"2019-03-21","Colorado Avalanche","Dallas Stars"]
[null,null,null,null,null,null,null,null,null,null,null,null,null,null,null,null,"2019-03-21","Columbus Blue Jackets","Edmonton Oilers"]
[null,null,null,null,null,null,null,null,null,null,null,null,null,null,null,null,"2019-03-21","Arizona Coyotes","Florida Panthers"]
[null,null,null,null,null,null,null,null,null,null,null,null,null,null,null,null,"2019-03-21","San Jose Sharks","Los Angeles Kings"]
[null,null,null,null,null,null,null,null,null,null,null,null,null,null,null,null,"2019-03-21","New York Islanders","Montreal Canadiens"]
[null,null,null,null,null,null,null,null,null,null,null,null,null,null,null,null,"2019-03-21","Boston Bruins","New Jersey Devils"]
[null,null,null,null,null,null,null,null,null,null,null,null,null,null,null,null,"2019-03-21","Pittsburgh Penguins","Nashville Predators"]
[null,null,null,null,null,null,null,null,null,null,null,null,null,null,null,null,"2019-03-21","Detroit Red Wings","St. Louis Blues"]
[null,null,null,null,null,null,null,null,null,null,null,null,null,null,null,null,"2019-03-21","Winnipeg Jets","Vegas Golden Knights"]
[null,null,null,null,null,null,null,null,null,null,null,null,null,null,null,null,"2019-03-23","Minnesota Wild","Carolina Hurricanes"]
[null,null,null,null,null,null,null,null,null,null,null,null,null,null,null,null,"2019-03-23","Chicago Blackhawks","Colorado Avalanche"]
[null,null,null,null,null,null,null,null,null,null,null,null,null,null,null,null,"2019-03-23","Pittsburgh Penguins","Dallas Stars"]
[null,null,null,null,null,null,null,null,null,null,null,null,null,null,null,null,"2019-03-23","Ottawa Senators","Edmonton Oilers"]
[null,null,null,null,null,null,null,null,null,null,null,null,null,null,null,null,"2019-03-23","Boston Bruins","Florida Panthers"]
[null,null,null,null,null,null,null,null,null,null,null,null,null,null,null,null,"2019-03-23","Anaheim Ducks","Los Angeles Kings"]
[null,null,null,null,null,null,null,null,null,null,null,null,null,null,null,null,"2019-03-23","Buffalo Sabres","Montreal Canadiens"]
[null,null,null,null,null,null,null,null,null,null,null,null,null,null,null,null,"2019-03-23","Arizona Coyotes","New Jersey Devils"]
[null,null,null,null,null,null,null,null,null,null,null,null,null,null,null,null,"2019-03-23","New York Islanders","Philadelphia Flyers"]
[null,null,null,null,null,null,null,null,null,null,null,null,null,null,null,null,"2019-03-23","Tampa Bay Lightning","St. Louis Blues"]
[null,null,null,null,null,null,null,null,null,null,null,null,null,null,null,null,"2019-03-23","New York Rangers","Toronto Maple Leafs"]
[null,null,null,null,null,null,null,null,null,null,null,null,null,null,null,null,"2019-03-23","Calgary Flames","Vancouver Canucks"]
[null,null,null,null,null,null,null,null,null,null,null,null,null,null,null,null,"2019-03-23","Detroit Red Wings","Vegas Golden Knights"]
[null,null,null,null,null,null,null,null,null,null,null,null,null,null,null,null,"2019-03-23","Nashville Predators","Winnipeg Jets"]
[null,null,null,null,null,null,null,null,null,null,null,null,null,null,null,null,"2019-03-25","Los Angeles Kings","Calgary Flames"]
[null,null,null,null,null,null,null,null,null,null,null,null,null,null,null,null,"2019-03-25","Nashville Predators","Minnesota Wild"]
[null,null,null,null,null,null,null,null,null,null,null,null,null,null,null,null,"2019-03-25","Buffalo Sabres","New Jersey Devils"]
[null,null,null,null,null,null,null,null,null,null,null,null,null,null,null,null,"2019-03-25","Pittsburgh Penguins","New York Rangers"]
[null,null,null,null,null,null,null,null,null,null,null,null,null,null,null,null,"2019-03-25","Detroit Red Wings","San Jose Sharks"]
[null,null,null,null,null,null,null,null,null,null,null,null,null,null,null,null,"2019-03-25","Vegas Golden Knights","St. Louis Blues"]
[null,null,null,null,null,null,null,null,null,null,null,null,null,null,null,null,"2019-03-25","Boston Bruins","Tampa Bay Lightning"]
[null,null,null,null,null,null,null,null,null,null,null,null,null,null,null,null,"2019-03-25","Florida Panthers","Toronto Maple Leafs"]
[null,null,null,null,null,null,null,null,null,null,null,null,null,null,null,null,"2019-03-25","Dallas Stars","Winnipeg Jets"]
[null,null,null,null,null,null,null,null,null,null,null,null,null,null,null,null,"2019-03-29","Anaheim Ducks","Calgary Flames"]
[null,null,null,null,null,null,null,null,null,null,null,null,null,null,null,null,"2019-03-29","Arizona Coyotes","Colorado Avalanche"]
[null,null,null,null,null,null,null,null,null,null,null,null,null,null,null,null,"2019-03-29","New Jersey Devils","Detroit Red Wings"]
[null,null,null,null,null,null,null,null,null,null,null,null,null,null,null,null,"2019-03-29","St. Louis Blues","New York Rangers"]
[null,null,null,null,null,null,null,null,null,null,null,null,null,null,null,null,"2019-03-29","Nashville Predators","Pittsburgh Penguins"]
[null,null,null,null,null,null,null,null,null,null,null,null,null,null,null,null,"2019-03-29","Minnesota Wild","Vegas Golden Knights"]
[null,null,null,null,null,null,null,null,null,null,null,null,null,null,null,null,"2019-03-31","Minnesota Wild","Arizona Coyotes"]
[null,null,null,null,null,null,null,null,null,null,null,null,null,null,null,null,"2019-03-31","Columbus Blue Jackets","Buffalo Sabres"]
[null,null,null,null,null,null,null,null,null,null,null,null,null,null,null,null,"2019-03-31","Boston Bruins","Detroit Red Wings"]
[null,null,null,null,null,null,null,null,null,null,null,null,null,null,null,null,"2019-03-31","New York Rangers","Philadelphia Flyers"]
[null,null,null,null,null,null,null,null,null,null,null,null,null,null,null,null,"2019-03-31","Carolina Hurricanes","Pittsburgh Penguins"]
[null,null,null,null,null,null,null,null,null,null,null,null,null,null,null,null,"2019-03-31","Calgary Flames","San Jose Sharks"]
[null,null,null,null,null,null,null,null,null,null,null,null,null,null,null,null,"2019-04-02","Los Angeles Kings","Arizona Coyotes"]
[null,null,null,null,null,null,null,null,null,null,null,null,null,null,null,null,"2019-04-02","Nashville Predators","Buffalo Sabres"]
[null,null,null,null,null,null,null,null,null,null,null,null,null,null,null,null,"2019-04-02","Boston Bruins","Columbus Blue Jackets"]
[null,null,null,null,null,null,null,null,null,null,null,null,null,null,null,null,"2019-04-02","Edmonton Oilers","Colorado Avalanche"]
[null,null,null,null,null,null,null,null,null,null,null,null,null,null,null,null,"2019-04-02","Philadelphia Flyers","Dallas Stars"]
[null,null,null,null,null,null,null,null,null,null,null,null,null,null,null,null,"2019-04-02","Pittsburgh Penguins","Detroit Red Wings"]
[null,null,null,null,null,null,null,null,null,null,null,null,null,null,null,null,"2019-04-02","Winnipeg Jets","Minnesota Wild"]
[null,null,null,null,null,null,null,null,null,null,null,null,null,null,null,null,"2019-04-02","Tampa Bay Lightning","Montreal Canadiens"]
[null,null,null,null,null,null,null,null,null,null,null,null,null,null,null,null,"2019-04-02","Carolina Hurricanes","Toronto Maple Leafs"]
[null,null,null,null,null,null,null,null,null,null,null,null,null,null,null,null,"2019-04-02","San Jose Sharks","Vancouver Canucks"]
[null,null,null,null,null,null,null,null,null,null,null,null,null,null,null,null,"2019-04-04","Ottawa Senators","Buffalo Sabres"]
[null,null,null,null,null,null,null,null,null,null,null,null,null,null,null,null,"2019-04-04","New Jersey Devils","Carolina Hurricanes"]
[null,null,null,null,null,null,null,null,null,null,null,null,null,null,null,null,"2019-04-04","Winnipeg Jets","Colorado Avalanche"]
[null,null,null,null,null,null,null,null,null,null,null,null,null,null,null,null,"2019-04-04","San Jose Sharks","Edmonton Oilers"]
[null,null,null,null,null,null,null,null,null,null,null,null,null,null,null,null,"2019-04-04","New York Islanders","Florida Panthers"]
[null,null,null,null,null,null,null,null,null,null,null,null,null,null,null,null,"2019-04-04","Boston Bruins","Minnesota Wild"]
[null,null,null,null,null,null,null,null,null,null,null,null,null,null,null,null,"2019-04-04","Vancouver Canucks","Nashville Predators"]
[null,null,null,null,null,null,null,null,null,null,null,null,null,null,null,null,"2019-04-04","Detroit Red Wings","Pittsburgh Penguins"]
[null,null,null,null,null,null,null,null,null,null,null,null,null,null,null,null,"2019-04-04","Philadelphia Flyers","St. Louis Blues"]
[null,null,null,null,null,null,null,null,null,null,null,null,null,null,null,null,"2019-04-04","Tampa Bay Lightning","Toronto Maple Leafs"]
[null,null,null,null,null,null,null,null,null,null,null,null,null,null,null,null,"2019-04-04","Arizona Coyotes","Vegas Golden Knights"]
[null,null,null,null,null,null,null,null,null,null,null,null,null,null,null,null,"2019-04-04","Montreal Canadiens","Washington Capitals"]
[null,null,null,null,null,null,null,null,null,null,null,null,null,null,null,null,"2019-04-06","Winnipeg Jets","Arizona Coyotes"]
[null,null,null,null,null,null,null,null,null,null,null,null,null,null,null,null,"2019-04-06","Tampa Bay Lightning","Boston Bruins"]
[null,null,null,null,null,null,null,null,null,null,null,null,null,null,null,null,"2019-04-06","Edmonton Oilers","Calgary Flames"]
[null,null,null,null,null,null,null,null,null,null,null,null,null,null,null,null,"2019-04-06","Minnesota Wild","Dallas Stars"]
[null,null,null,null,null,null,null,null,null,null,null,null,null,null,null,null,"2019-04-06","Buffalo Sabres","Detroit Red Wings"]
[null,null,null,null,null,null,null,null,null,null,null,null,null,null,null,null,"2019-04-06","New Jersey Devils","Florida Panthers"]
[null,null,null,null,null,null,null,null,null,null,null,null,null,null,null,null,"2019-04-06","Vegas Golden Knights","Los Angeles Kings"]
[null,null,null,null,null,null,null,null,null,null,null,null,null,null,null,null,"2019-04-06","Toronto Maple Leafs","Montreal Canadiens"]
[null,null,null,null,null,null,null,null,null,null,null,null,null,null,null,null,"2019-04-06","Chicago Blackhawks","Nashville Predators"]
[null,null,null,null,null,null,null,null,null,null,null,null,null,null,null,null,"2019-04-06","Columbus Blue Jackets","Ottawa Senators"]
[null,null,null,null,null,null,null,null,null,null,null,null,null,null,null,null,"2019-04-06","Carolina Hurricanes","Philadelphia Flyers"]
[null,null,null,null,null,null,null,null,null,null,null,null,null,null,null,null,"2019-04-06","New York Rangers","Pittsburgh Penguins"]
[null,null,null,null,null,null,null,null,null,null,null,null,null,null,null,null,"2019-04-06","Colorado Avalanche","San Jose Sharks"]
[null,null,null,null,null,null,null,null,null,null,null,null,null,null,null,null,"2019-04-06","Vancouver Canucks","St. Louis Blues"]
[null,null,null,null,null,null,null,null,null,null,null,null,null,null,null,null,"2019-04-06","New York Islanders","Washington Capitals"]